{"text_format":"1","workbook":"xlsx","n_sheets":10,"sheets":["INTRO","COUNTRY_INFO","DEC","ALB_MBD","PZQ","IVM","IVM+","SUMMARY","SHIPMENT","DATA_POLICY"],"not_rendered":{"charts":0,"images":3,"macros":1,"external_links":0,"defined_names":6,"comments":9,"pivot_tables":0},"unopened":[],"bounds":{"document_bytes":16777216,"sheet_cells":100000,"rows_first":2000,"rows_last":500,"rows_between":2000,"halvings":0,"cell_chars":16384,"cell_head_chars":4096},"cells_cut":0,"cells_raw":0,"read":"whole","date_system":"1900"}

{"sheet":"INTRO","index":0,"n_rows":50,"n_cols":5,"rows_kept":50,"cut":false,"hidden":false,"merged":[[21,1,21,4],[46,1,46,4],[38,1,38,2],[40,1,40,2],[42,1,42,2],[44,1,44,2],[36,1,36,2],[22,2,23,4],[25,2,26,4],[27,1,27,4],[32,1,32,2],[29,1,29,4],[30,1,30,4],[28,2,28,4],[24,1,24,4],[34,1,34,2],[0,1,0,4],[2,1,2,4],[1,1,1,4],[5,1,5,4],[3,1,3,4],[7,2,7,4],[11,1,11,4],[4,1,4,4],[10,2,10,4],[20,2,20,4],[17,1,17,4],[13,1,13,4],[18,2,18,4],[8,2,8,4],[9,2,9,4],[19,1,19,4],[12,1,12,4],[16,1,16,4],[14,1,14,4],[15,1,15,4]]}
[]
[null,"Joint request for selected PC medicines v.3.1"]
[]
[null,"As part of global efforts to accelerate expansion of preventive chemotherapy (PC) for control and elimination of lymphatic filariasis, schistosomiasis and soil-transmitted helminthiases, the World Health Organization (WHO) facilitates the supply of albendazole 400 mg tablets (GSK) to national lymphatic filariasis elimination programmes and national soil-transmitted helminth control programmes; diethylcarbamazine citrate 100 mg tablets (Eisai) to national lymphatic filariasis elimination programmes; mebendazole 500 mg tablets (J&J) for national soil-transmitted helminth control programmes; and praziquantel 600 mg tablets (Merck KGaA)  for school-age children to national schistosomiasis control programmes. WHO also collaborates to supply ivermectin 3 mg tablets (Merck) for onchocerciasis and lymphatic filariasis donation programmes.  \nThis Excel-based tool is designed to assist countries in quantifying the number of tablets of relevant PC medicines required to reach the planned target population and districts for the year of request. Output of the tool is a joint request for PC medicines, which can be printed, signed and submitted to WHO to request these medicines."]
[]
[null,"Structure of the application (worksheets):"]
[]
[null,"INTRO","This worksheet includes guides on how to complete the joint request for selected PC medicines and information about the status of PC for endemic diseases in the country."]
[null,"COUNTRY_INFO","This worksheet includes information about administrative structure of the country, population by age group, status of endemicity for each disease, population requiring PC and planned interventions."]
[null,"DEC, ALB_MBD, PZQ and IVM","These worksheets include information about endemic districts targeted for treatment with specified PC medicines, treatment plan, and number of tablets required and requested. "]
[null,"SUMMARY","This worksheet includes summary of number of tablets requested, information about stock, and date for submission of requested medicines. Before generating the report (run macros) please select the medicine for which the report is needed. Follow the same rule to see the number of people to be treated for the specific disease. \nThis worksheet should be printed and submitted as a joint request for selected PC medicines (see the instruction for submission in the SUMMARY worksheet)."]
[]
[null,"Instruction for data entry"]
[]
[null,"Most of the cells in the above-mentioned worksheets include formula that are calculated automatically according to the treatment policy recommended by WHO for each disease.\nSee the link http://www.who.int/neglected_diseases/preventive_chemotherapy/pct_manual/en/index.html"]
[]
[null,"Please enter your data into the cells according to their colour code:"]
[]
[null,null,"White - cell is not protected. Please enter the value of the requested indicator."]
[]
[null,null,"Yellow - cell is protected and includes name of indicator. No data entry required."]
[]
[null,null,"Orange - cell is not protected and includes a drop-down menu. Please select the value from the drop-down list."]
[]
[]
[null,null,"Green - cell is not protected and includes formula. Please change the value only if your data are different from those that are calculated automatically."]
[]
[]
[null,null,"Blue - cell is protected and includes formula. No data entry required."]
[]
[null,"Country data"]
[]
[null,"COUNTRY",null,null,"Sierra Leone"]
[]
[null,"Year for request of the medicine",null,null,2021]
[]
[null,"Is country endemic for lymphatic filariasis (LF)?",null,null,"Endemic"]
[]
[null,"Is country endemic for onchocerciasis (ONCHO)?",null,null,"Endemic"]
[]
[null,"Is country endemic for soil-transmitted helminthiases (STH)?",null,null,"Endemic"]
[]
[null,"Is country endemic for schistosomiasis (SCH)?",null,null,"Endemic"]
[]
[null,"How many administrative units in the country?",null,null,16]
[]
[null,"If demographical data at the second administrative level are not available by age group, please enter the proportion (%) of population by age group in the country. If data are available, please leave these cells blank."]
[null,"0-59 months","Preschool-age children (PreSAC)",null,8.5334120598195951E-2]
[null,"5-14 years age","School-age children (SAC)",null,0.2581868964276603]
[null,"15 years +","Adults",null,0.59656386466816724]

{"sheet":"COUNTRY_INFO","index":1,"n_rows":22,"n_cols":26,"rows_kept":22,"cut":false,"hidden":false,"merged":[[7,0,7,18],[5,3,5,6],[5,7,5,10],[5,11,5,14],[5,15,5,18],[3,0,3,2],[3,7,3,10],[3,15,3,18],[5,0,5,2],[3,20,3,23],[5,20,5,23]]}
["COUNTRY INFORMATION"]
["Administrative structure, population by age group, status of endemicity and planned interventions"]
[]
["TOTAL",null,null,{"$f":"SUM(D$9:D$1000)","v":8785135.5861749016},{"$f":"SUM(E$9:E$1000)","v":749673},{"$f":"SUM(F$9:F$1000)","v":2268208},{"$f":"SUM(G$9:G$1000)","v":5240894},null,null,null,null,{"$f":"SUM(L$9:L$1000)","v":3344473.6271525118},{"$f":"SUM(M$9:M$1000)","v":6654958},{"$f":"SUM(N$9:N$1000)","v":2806817},{"$f":"SUM(O$9:O$1000)","v":3141384.77}]
[]
["Country administrative structure",null,null,"Population",null,null,null,"Endemicity",null,null,null,"Population requiring PC",null,null,null,"Number of treatment rounds planned for the year",null,null,null,"Criteria to apply for \nIVM+DEC+ALB therapy","Epidemiological surveys planned for the year"]
["Country","Province/State","District","Total","PreSAC","SAC","Adults","LF","Oncho","STH","SCH","LF","Oncho","STH","SCH","LF","Oncho","STH","SCH","LF","LF","Oncho","STH","SCH","IU_ID","IU_NAME"]
[]
[{"$f":"IF(INTRO!$E$33<>0,INTRO!$E$33, \" \")","v":"Sierra Leone"},"SOUHTERN","BO",625073,{"$f":"IF(INTRO!$E$48=\"\",\"\",ROUND($D9*INTRO!$E$48,0))","v":53340},{"$f":"IF(INTRO!$E$49=\"\",\"\",ROUND($D9*INTRO!$E$49,0))","v":161386},{"$f":"IF(INTRO!$E$50=\"\",\"\",ROUND($D9*INTRO!$E$50,0))","v":372896},99,1,2,2,{"$f":"IF(INTRO!$E$37=\"Endemic\",IF($H9>0,IF($H9=4,\"Unknown\",IF($H9=99,\"Stopped\",$D9)),0),\"Not required\")","v":"Stopped"},{"$f":"IF(INTRO!$E$39=\"Endemic\", IF($I9>0, IF($I9=4,\"Unknown\",IF($I9=99,\"Stopped\",$D9)), 0),\"Not required\")","v":625073},{"$f":"IF(INTRO!$E$41=\"Endemic\", IF(AND($J9>1,$J9<5), IF($J9=4, \"Unknown\", E9+F9), 0),\"Not required\")","v":214726},{"$f":"IF(INTRO!$E$43=\"Endemic\", IF(AND($K9>0,$K9<5), IF($K9=4,\"Unknown\", IF($K9=1, $F9*0.33, IF($K9=2, $F9*0.5+$G9*0.2, SUM(F9:G9)))), 0),\"Not required\")","v":155272.20000000001},0,1,1,1,null,"TAS",null,"Yes","Yes",42261,"BO"]
[{"$f":"IF(INTRO!$E$33<>0,INTRO!$E$33, \" \")","v":"Sierra Leone"},"SOUHTERN","MOYAMBA ",376850,{"$f":"IF(INTRO!$E$48=\"\",\"\",ROUND($D10*INTRO!$E$48,0))","v":32158},{"$f":"IF(INTRO!$E$49=\"\",\"\",ROUND($D10*INTRO!$E$49,0))","v":97298},{"$f":"IF(INTRO!$E$50=\"\",\"\",ROUND($D10*INTRO!$E$50,0))","v":224815},99,1,2,1,{"$f":"IF(INTRO!$E$37=\"Endemic\",IF($H10>0,IF($H10=4,\"Unknown\",IF($H10=99,\"Stopped\",$D10)),0),\"Not required\")","v":"Stopped"},{"$f":"IF(INTRO!$E$39=\"Endemic\", IF($I10>0, IF($I10=4,\"Unknown\",IF($I10=99,\"Stopped\",$D10)), 0),\"Not required\")","v":376850},{"$f":"IF(INTRO!$E$41=\"Endemic\", IF(AND($J10>1,$J10<5), IF($J10=4, \"Unknown\", E10+F10), 0),\"Not required\")","v":129456},{"$f":"IF(INTRO!$E$43=\"Endemic\", IF(AND($K10>0,$K10<5), IF($K10=4,\"Unknown\", IF($K10=1, $F10*0.33, IF($K10=2, $F10*0.5+$G10*0.2, SUM(F10:G10)))), 0),\"Not required\")","v":32108.34},0,1,1,0,null,"TAS",null,"Yes",null,42263,"MOYAMBA"]
[{"$f":"IF(INTRO!$E$33<>0,INTRO!$E$33, \" \")","v":"Sierra Leone"},"SOUHTERN","PUJEHUN ",372654,{"$f":"IF(INTRO!$E$48=\"\",\"\",ROUND($D11*INTRO!$E$48,0))","v":31800},{"$f":"IF(INTRO!$E$49=\"\",\"\",ROUND($D11*INTRO!$E$49,0))","v":96214},{"$f":"IF(INTRO!$E$50=\"\",\"\",ROUND($D11*INTRO!$E$50,0))","v":222312},99,1,2,1,{"$f":"IF(INTRO!$E$37=\"Endemic\",IF($H11>0,IF($H11=4,\"Unknown\",IF($H11=99,\"Stopped\",$D11)),0),\"Not required\")","v":"Stopped"},{"$f":"IF(INTRO!$E$39=\"Endemic\", IF($I11>0, IF($I11=4,\"Unknown\",IF($I11=99,\"Stopped\",$D11)), 0),\"Not required\")","v":372654},{"$f":"IF(INTRO!$E$41=\"Endemic\", IF(AND($J11>1,$J11<5), IF($J11=4, \"Unknown\", E11+F11), 0),\"Not required\")","v":128014},{"$f":"IF(INTRO!$E$43=\"Endemic\", IF(AND($K11>0,$K11<5), IF($K11=4,\"Unknown\", IF($K11=1, $F11*0.33, IF($K11=2, $F11*0.5+$G11*0.2, SUM(F11:G11)))), 0),\"Not required\")","v":31750.620000000003},0,1,1,0,null,"TAS",null,"Yes",null,42264,"PUJEHUN"]
[{"$f":"IF(INTRO!$E$33<>0,INTRO!$E$33, \" \")","v":"Sierra Leone"},"SOUHTERN","BONTHE ",209025,{"$f":"IF(INTRO!$E$48=\"\",\"\",ROUND($D12*INTRO!$E$48,0))","v":17837},{"$f":"IF(INTRO!$E$49=\"\",\"\",ROUND($D12*INTRO!$E$49,0))","v":53968},{"$f":"IF(INTRO!$E$50=\"\",\"\",ROUND($D12*INTRO!$E$50,0))","v":124697},99,1,2,0,{"$f":"IF(INTRO!$E$37=\"Endemic\",IF($H12>0,IF($H12=4,\"Unknown\",IF($H12=99,\"Stopped\",$D12)),0),\"Not required\")","v":"Stopped"},{"$f":"IF(INTRO!$E$39=\"Endemic\", IF($I12>0, IF($I12=4,\"Unknown\",IF($I12=99,\"Stopped\",$D12)), 0),\"Not required\")","v":209025},{"$f":"IF(INTRO!$E$41=\"Endemic\", IF(AND($J12>1,$J12<5), IF($J12=4, \"Unknown\", E12+F12), 0),\"Not required\")","v":71805},{"$f":"IF(INTRO!$E$43=\"Endemic\", IF(AND($K12>0,$K12<5), IF($K12=4,\"Unknown\", IF($K12=1, $F12*0.33, IF($K12=2, $F12*0.5+$G12*0.2, SUM(F12:G12)))), 0),\"Not required\")","v":0},0,1,1,0,null,"TAS",null,"Yes",null,42262,"BONTHE"]
[{"$f":"IF(INTRO!$E$33<>0,INTRO!$E$33, \" \")","v":"Sierra Leone"},"EASTERN","KENEMA",822662,{"$f":"IF(INTRO!$E$48=\"\",\"\",ROUND($D13*INTRO!$E$48,0))","v":70201},{"$f":"IF(INTRO!$E$49=\"\",\"\",ROUND($D13*INTRO!$E$49,0))","v":212401},{"$f":"IF(INTRO!$E$50=\"\",\"\",ROUND($D13*INTRO!$E$50,0))","v":490770},1,1,2,3,{"$f":"IF(INTRO!$E$37=\"Endemic\",IF($H13>0,IF($H13=4,\"Unknown\",IF($H13=99,\"Stopped\",$D13)),0),\"Not required\")","v":822662},{"$f":"IF(INTRO!$E$39=\"Endemic\", IF($I13>0, IF($I13=4,\"Unknown\",IF($I13=99,\"Stopped\",$D13)), 0),\"Not required\")","v":822662},{"$f":"IF(INTRO!$E$41=\"Endemic\", IF(AND($J13>1,$J13<5), IF($J13=4, \"Unknown\", E13+F13), 0),\"Not required\")","v":282602},{"$f":"IF(INTRO!$E$43=\"Endemic\", IF(AND($K13>0,$K13<5), IF($K13=4,\"Unknown\", IF($K13=1, $F13*0.33, IF($K13=2, $F13*0.5+$G13*0.2, SUM(F13:G13)))), 0),\"Not required\")","v":703171},1,1,1,1,null,"SS/SC",null,"Yes","Yes",42254,"KENEMA"]
[{"$f":"IF(INTRO!$E$33<>0,INTRO!$E$33, \" \")","v":"Sierra Leone"},"EASTERN","KONO",614414,{"$f":"IF(INTRO!$E$48=\"\",\"\",ROUND($D14*INTRO!$E$48,0))","v":52430},{"$f":"IF(INTRO!$E$49=\"\",\"\",ROUND($D14*INTRO!$E$49,0))","v":158634},{"$f":"IF(INTRO!$E$50=\"\",\"\",ROUND($D14*INTRO!$E$50,0))","v":366537},99,1,1,2,{"$f":"IF(INTRO!$E$37=\"Endemic\",IF($H14>0,IF($H14=4,\"Unknown\",IF($H14=99,\"Stopped\",$D14)),0),\"Not required\")","v":"Stopped"},{"$f":"IF(INTRO!$E$39=\"Endemic\", IF($I14>0, IF($I14=4,\"Unknown\",IF($I14=99,\"Stopped\",$D14)), 0),\"Not required\")","v":614414},{"$f":"IF(INTRO!$E$41=\"Endemic\", IF(AND($J14>1,$J14<5), IF($J14=4, \"Unknown\", E14+F14), 0),\"Not required\")","v":0},{"$f":"IF(INTRO!$E$43=\"Endemic\", IF(AND($K14>0,$K14<5), IF($K14=4,\"Unknown\", IF($K14=1, $F14*0.33, IF($K14=2, $F14*0.5+$G14*0.2, SUM(F14:G14)))), 0),\"Not required\")","v":152624.40000000002},0,1,0,1,null,"TAS",null,"Yes","Yes",42255,"KONO"]
[{"$f":"IF(INTRO!$E$33<>0,INTRO!$E$33, \" \")","v":"Sierra Leone"},"EASTERN","KAILAHUN ",758380,{"$f":"IF(INTRO!$E$48=\"\",\"\",ROUND($D15*INTRO!$E$48,0))","v":64716},{"$f":"IF(INTRO!$E$49=\"\",\"\",ROUND($D15*INTRO!$E$49,0))","v":195804},{"$f":"IF(INTRO!$E$50=\"\",\"\",ROUND($D15*INTRO!$E$50,0))","v":452422},1,1,2,3,{"$f":"IF(INTRO!$E$37=\"Endemic\",IF($H15>0,IF($H15=4,\"Unknown\",IF($H15=99,\"Stopped\",$D15)),0),\"Not required\")","v":758380},{"$f":"IF(INTRO!$E$39=\"Endemic\", IF($I15>0, IF($I15=4,\"Unknown\",IF($I15=99,\"Stopped\",$D15)), 0),\"Not required\")","v":758380},{"$f":"IF(INTRO!$E$41=\"Endemic\", IF(AND($J15>1,$J15<5), IF($J15=4, \"Unknown\", E15+F15), 0),\"Not required\")","v":260520},{"$f":"IF(INTRO!$E$43=\"Endemic\", IF(AND($K15>0,$K15<5), IF($K15=4,\"Unknown\", IF($K15=1, $F15*0.33, IF($K15=2, $F15*0.5+$G15*0.2, SUM(F15:G15)))), 0),\"Not required\")","v":648226},1,1,1,1,null,"SS/SC",null,"Yes","Yes",42253,"KAILAHUN"]
[{"$f":"IF(INTRO!$E$33<>0,INTRO!$E$33, \" \")","v":"Sierra Leone"},"NORTHERN","BOMBALI",692485,{"$f":"IF(INTRO!$E$48=\"\",\"\",ROUND($D16*INTRO!$E$48,0))","v":59093},{"$f":"IF(INTRO!$E$49=\"\",\"\",ROUND($D16*INTRO!$E$49,0))","v":178791},{"$f":"IF(INTRO!$E$50=\"\",\"\",ROUND($D16*INTRO!$E$50,0))","v":413112},1,1,2,2,{"$f":"IF(INTRO!$E$37=\"Endemic\",IF($H16>0,IF($H16=4,\"Unknown\",IF($H16=99,\"Stopped\",$D16)),0),\"Not required\")","v":692485},{"$f":"IF(INTRO!$E$39=\"Endemic\", IF($I16>0, IF($I16=4,\"Unknown\",IF($I16=99,\"Stopped\",$D16)), 0),\"Not required\")","v":692485},{"$f":"IF(INTRO!$E$41=\"Endemic\", IF(AND($J16>1,$J16<5), IF($J16=4, \"Unknown\", E16+F16), 0),\"Not required\")","v":237884},{"$f":"IF(INTRO!$E$43=\"Endemic\", IF(AND($K16>0,$K16<5), IF($K16=4,\"Unknown\", IF($K16=1, $F16*0.33, IF($K16=2, $F16*0.5+$G16*0.2, SUM(F16:G16)))), 0),\"Not required\")","v":172017.90000000002},1,1,1,1,null,"SS/SC",null,"Yes","Yes",42256,"BOMBALI"]
[{"$f":"IF(INTRO!$E$33<>0,INTRO!$E$33, \" \")","v":"Sierra Leone"},"NORTHERN","TONKOLILI",578814,{"$f":"IF(INTRO!$E$48=\"\",\"\",ROUND($D17*INTRO!$E$48,0))","v":49393},{"$f":"IF(INTRO!$E$49=\"\",\"\",ROUND($D17*INTRO!$E$49,0))","v":149442},{"$f":"IF(INTRO!$E$50=\"\",\"\",ROUND($D17*INTRO!$E$50,0))","v":345300},99,1,2,2,{"$f":"IF(INTRO!$E$37=\"Endemic\",IF($H17>0,IF($H17=4,\"Unknown\",IF($H17=99,\"Stopped\",$D17)),0),\"Not required\")","v":"Stopped"},{"$f":"IF(INTRO!$E$39=\"Endemic\", IF($I17>0, IF($I17=4,\"Unknown\",IF($I17=99,\"Stopped\",$D17)), 0),\"Not required\")","v":578814},{"$f":"IF(INTRO!$E$41=\"Endemic\", IF(AND($J17>1,$J17<5), IF($J17=4, \"Unknown\", E17+F17), 0),\"Not required\")","v":198835},{"$f":"IF(INTRO!$E$43=\"Endemic\", IF(AND($K17>0,$K17<5), IF($K17=4,\"Unknown\", IF($K17=1, $F17*0.33, IF($K17=2, $F17*0.5+$G17*0.2, SUM(F17:G17)))), 0),\"Not required\")","v":143781},0,1,1,1,null,"TAS",null,"Yes","Yes",42260,"TONKOLILI"]
[{"$f":"IF(INTRO!$E$33<>0,INTRO!$E$33, \" \")","v":"Sierra Leone"},"NORTHERN","PORT LOKO",669505,{"$f":"IF(INTRO!$E$48=\"\",\"\",ROUND($D18*INTRO!$E$48,0))","v":57132},{"$f":"IF(INTRO!$E$49=\"\",\"\",ROUND($D18*INTRO!$E$49,0))","v":172857},{"$f":"IF(INTRO!$E$50=\"\",\"\",ROUND($D18*INTRO!$E$50,0))","v":399402},99,1,2,2,{"$f":"IF(INTRO!$E$37=\"Endemic\",IF($H18>0,IF($H18=4,\"Unknown\",IF($H18=99,\"Stopped\",$D18)),0),\"Not required\")","v":"Stopped"},{"$f":"IF(INTRO!$E$39=\"Endemic\", IF($I18>0, IF($I18=4,\"Unknown\",IF($I18=99,\"Stopped\",$D18)), 0),\"Not required\")","v":669505},{"$f":"IF(INTRO!$E$41=\"Endemic\", IF(AND($J18>1,$J18<5), IF($J18=4, \"Unknown\", E18+F18), 0),\"Not required\")","v":229989},{"$f":"IF(INTRO!$E$43=\"Endemic\", IF(AND($K18>0,$K18<5), IF($K18=4,\"Unknown\", IF($K18=1, $F18*0.33, IF($K18=2, $F18*0.5+$G18*0.2, SUM(F18:G18)))), 0),\"Not required\")","v":166308.90000000002},0,1,1,0,null,"TAS",null,"Yes",null,42259,"PORT LOKO"]
[{"$f":"IF(INTRO!$E$33<>0,INTRO!$E$33, \" \")","v":"Sierra Leone"},"NORTHERN","KOINADUGU",538285,{"$f":"IF(INTRO!$E$48=\"\",\"\",ROUND($D19*INTRO!$E$48,0))","v":45934},{"$f":"IF(INTRO!$E$49=\"\",\"\",ROUND($D19*INTRO!$E$49,0))","v":138978},{"$f":"IF(INTRO!$E$50=\"\",\"\",ROUND($D19*INTRO!$E$50,0))","v":321121},1,1,3,3,{"$f":"IF(INTRO!$E$37=\"Endemic\",IF($H19>0,IF($H19=4,\"Unknown\",IF($H19=99,\"Stopped\",$D19)),0),\"Not required\")","v":538285},{"$f":"IF(INTRO!$E$39=\"Endemic\", IF($I19>0, IF($I19=4,\"Unknown\",IF($I19=99,\"Stopped\",$D19)), 0),\"Not required\")","v":538285},{"$f":"IF(INTRO!$E$41=\"Endemic\", IF(AND($J19>1,$J19<5), IF($J19=4, \"Unknown\", E19+F19), 0),\"Not required\")","v":184912},{"$f":"IF(INTRO!$E$43=\"Endemic\", IF(AND($K19>0,$K19<5), IF($K19=4,\"Unknown\", IF($K19=1, $F19*0.33, IF($K19=2, $F19*0.5+$G19*0.2, SUM(F19:G19)))), 0),\"Not required\")","v":460099},1,1,2,1,null,"SS/SC",null,"Yes","Yes",42258,"KOINADUGU"]
[{"$f":"IF(INTRO!$E$33<>0,INTRO!$E$33, \" \")","v":"Sierra Leone"},"NORTHERN","KAMBIA ",396811,{"$f":"IF(INTRO!$E$48=\"\",\"\",ROUND($D20*INTRO!$E$48,0))","v":33862},{"$f":"IF(INTRO!$E$49=\"\",\"\",ROUND($D20*INTRO!$E$49,0))","v":102451},{"$f":"IF(INTRO!$E$50=\"\",\"\",ROUND($D20*INTRO!$E$50,0))","v":236723},99,1,2,1,{"$f":"IF(INTRO!$E$37=\"Endemic\",IF($H20>0,IF($H20=4,\"Unknown\",IF($H20=99,\"Stopped\",$D20)),0),\"Not required\")","v":"Stopped"},{"$f":"IF(INTRO!$E$39=\"Endemic\", IF($I20>0, IF($I20=4,\"Unknown\",IF($I20=99,\"Stopped\",$D20)), 0),\"Not required\")","v":396811},{"$f":"IF(INTRO!$E$41=\"Endemic\", IF(AND($J20>1,$J20<5), IF($J20=4, \"Unknown\", E20+F20), 0),\"Not required\")","v":136313},{"$f":"IF(INTRO!$E$43=\"Endemic\", IF(AND($K20>0,$K20<5), IF($K20=4,\"Unknown\", IF($K20=1, $F20*0.33, IF($K20=2, $F20*0.5+$G20*0.2, SUM(F20:G20)))), 0),\"Not required\")","v":33808.83},0,1,1,0,null,"TAS",null,"Yes",null,42257,"KAMBIA"]
[{"$f":"IF(INTRO!$E$33<>0,INTRO!$E$33, \" \")","v":"Sierra Leone"},"WESTERN","WESTERN  RURAL",532661.62715251197,{"$f":"IF(INTRO!$E$48=\"\",\"\",ROUND($D21*INTRO!$E$48,0))","v":45454},{"$f":"IF(INTRO!$E$49=\"\",\"\",ROUND($D21*INTRO!$E$49,0))","v":137526},{"$f":"IF(INTRO!$E$50=\"\",\"\",ROUND($D21*INTRO!$E$50,0))","v":317767},1,0,2,1,{"$f":"IF(INTRO!$E$37=\"Endemic\",IF($H21>0,IF($H21=4,\"Unknown\",IF($H21=99,\"Stopped\",$D21)),0),\"Not required\")","v":532661.62715251197},{"$f":"IF(INTRO!$E$39=\"Endemic\", IF($I21>0, IF($I21=4,\"Unknown\",IF($I21=99,\"Stopped\",$D21)), 0),\"Not required\")","v":0},{"$f":"IF(INTRO!$E$41=\"Endemic\", IF(AND($J21>1,$J21<5), IF($J21=4, \"Unknown\", E21+F21), 0),\"Not required\")","v":182980},{"$f":"IF(INTRO!$E$43=\"Endemic\", IF(AND($K21>0,$K21<5), IF($K21=4,\"Unknown\", IF($K21=1, $F21*0.33, IF($K21=2, $F21*0.5+$G21*0.2, SUM(F21:G21)))), 0),\"Not required\")","v":45383.58},1,0,1,0,null,"SS/SC",null,"Yes",null,42265,"WESTERN RURAL"]
[{"$f":"IF(INTRO!$E$33<>0,INTRO!$E$33, \" \")","v":"Sierra Leone"},"WESTERN","WESTERN  URBAN ",1597515.95902239,{"$f":"IF(INTRO!$E$48=\"\",\"\",ROUND($D22*INTRO!$E$48,0))","v":136323},{"$f":"IF(INTRO!$E$49=\"\",\"\",ROUND($D22*INTRO!$E$49,0))","v":412458},{"$f":"IF(INTRO!$E$50=\"\",\"\",ROUND($D22*INTRO!$E$50,0))","v":953020},99,0,2,2,{"$f":"IF(INTRO!$E$37=\"Endemic\",IF($H22>0,IF($H22=4,\"Unknown\",IF($H22=99,\"Stopped\",$D22)),0),\"Not required\")","v":"Stopped"},{"$f":"IF(INTRO!$E$39=\"Endemic\", IF($I22>0, IF($I22=4,\"Unknown\",IF($I22=99,\"Stopped\",$D22)), 0),\"Not required\")","v":0},{"$f":"IF(INTRO!$E$41=\"Endemic\", IF(AND($J22>1,$J22<5), IF($J22=4, \"Unknown\", E22+F22), 0),\"Not required\")","v":548781},{"$f":"IF(INTRO!$E$43=\"Endemic\", IF(AND($K22>0,$K22<5), IF($K22=4,\"Unknown\", IF($K22=1, $F22*0.33, IF($K22=2, $F22*0.5+$G22*0.2, SUM(F22:G22)))), 0),\"Not required\")","v":396833},0,0,1,0,null,"TAS",null,"Yes",null,42266,"WESTERN URBAN"]

{"sheet":"DEC","index":2,"n_rows":22,"n_cols":13,"rows_kept":22,"cut":false,"hidden":true,"merged":[[3,0,3,2],[5,0,5,2],[6,5,7,5],[6,2,7,2],[6,1,7,1],[6,10,7,10],[6,0,7,0],[6,11,7,11],[5,3,5,6],[5,9,5,12],[6,4,7,4],[6,3,7,3],[6,8,7,8],[6,12,7,12],[6,7,7,7],[6,6,7,6],[6,9,7,9]]}
["Diethylcarbamazine citrate (DEC)"]
["Administrative structure, eligible population by age group, treatment plan and information about tablets"]
[]
["TOTAL",null,null,{"$f":"SUM(D$9:D$1000)","v":0},{"$f":"SUM(E$9:E$1000)","v":0},{"$f":"SUM(F$9:F$1000)","v":0},{"$f":"SUM(G$9:G$1000)","v":0},null,{"$f":"SUM(I$9:I$1000)","v":0},{"$f":"SUM(J$9:J$1000)","v":0},{"$f":"SUM(K$9:K$1000)","v":0},{"$f":"SUM(L$9:L$1000)","v":0},{"$f":"SUM(M$9:M$1000)","v":0}]
[]
["Country administrative structure",null,null,"Population requiring treatment with DEC",null,null,null,"Treatment plan","Target population","Diethylcarbamazine citrate (DEC)"]
["Country","Province/State","District","PreSAC","SAC","Adults","Total","LF","LF","Total required","Remaining in stock","Tablets to be procured","Bottle (100 mg)\n1000 tablets"]
[]
[{"$f":"IF(INTRO!$E$39<>\"Non-endemic\", \" \", IF(INTRO!$E$37=\"Non-endemic\",\" \", IF(COUNTRY_INFO!A9=0,\" \",COUNTRY_INFO!A9)))","v":" "},{"$f":"IF(INTRO!$E$39<>\"Non-endemic\", \" \", IF(INTRO!$E$37=\"Non-endemic\",\" \", IF(COUNTRY_INFO!B9=0,\" \",COUNTRY_INFO!B9)))","v":" "},{"$f":"IF(INTRO!$E$39<>\"Non-endemic\", \" \", IF(INTRO!$E$37=\"Non-endemic\",\" \", IF(COUNTRY_INFO!C9=0,\" \",COUNTRY_INFO!C9)))","v":" "},{"$f":"IF(INTRO!$E$39<>\"Non-endemic\", 0, IF(INTRO!$E$37=\"Non-endemic\",0,IF(COUNTRY_INFO!$H9=1,COUNTRY_INFO!E9,0)))","v":0},{"$f":"IF(INTRO!$E$39<>\"Non-endemic\", 0, IF(INTRO!$E$37=\"Non-endemic\",0,IF(COUNTRY_INFO!$H9=1,COUNTRY_INFO!F9,0)))","v":0},{"$f":"IF(INTRO!$E$39<>\"Non-endemic\", 0, IF(INTRO!$E$37=\"Non-endemic\",0,IF(COUNTRY_INFO!$H9=1,COUNTRY_INFO!G9,0)))","v":0},{"$f":"SUM(D9:F9)","v":0},{"$f":"IF(INTRO!$E$39=\"Non-endemic\",IF(INTRO!$E$37=\"Non-endemic\",\"Not required\",COUNTRY_INFO!P9),\"Treat with IVM\")","v":"Treat with IVM"},{"$f":"IF(H9=1,G9,0)","v":0},{"$f":"IF(I9>0,I9*2.5,0)","v":0},null,{"$f":"IF($J9>$K9,$J9-$K9,0)","v":0},{"$f":"ROUNDUP($J9/1000,0)","v":0}]
[{"$f":"IF(INTRO!$E$39<>\"Non-endemic\", \" \", IF(INTRO!$E$37=\"Non-endemic\",\" \", IF(COUNTRY_INFO!A10=0,\" \",COUNTRY_INFO!A10)))","v":" "},{"$f":"IF(INTRO!$E$39<>\"Non-endemic\", \" \", IF(INTRO!$E$37=\"Non-endemic\",\" \", IF(COUNTRY_INFO!B10=0,\" \",COUNTRY_INFO!B10)))","v":" "},{"$f":"IF(INTRO!$E$39<>\"Non-endemic\", \" \", IF(INTRO!$E$37=\"Non-endemic\",\" \", IF(COUNTRY_INFO!C10=0,\" \",COUNTRY_INFO!C10)))","v":" "},{"$f":"IF(INTRO!$E$39<>\"Non-endemic\", 0, IF(INTRO!$E$37=\"Non-endemic\",0,IF(COUNTRY_INFO!$H10=1,COUNTRY_INFO!E10,0)))","v":0},{"$f":"IF(INTRO!$E$39<>\"Non-endemic\", 0, IF(INTRO!$E$37=\"Non-endemic\",0,IF(COUNTRY_INFO!$H10=1,COUNTRY_INFO!F10,0)))","v":0},{"$f":"IF(INTRO!$E$39<>\"Non-endemic\", 0, IF(INTRO!$E$37=\"Non-endemic\",0,IF(COUNTRY_INFO!$H10=1,COUNTRY_INFO!G10,0)))","v":0},0,{"$f":"IF(INTRO!$E$39=\"Non-endemic\",IF(INTRO!$E$37=\"Non-endemic\",\"Not required\",COUNTRY_INFO!P10),\"Treat with IVM\")","v":"Treat with IVM"},0,0,null,0,0]
[{"$f":"IF(INTRO!$E$39<>\"Non-endemic\", \" \", IF(INTRO!$E$37=\"Non-endemic\",\" \", IF(COUNTRY_INFO!A11=0,\" \",COUNTRY_INFO!A11)))","v":" "},{"$f":"IF(INTRO!$E$39<>\"Non-endemic\", \" \", IF(INTRO!$E$37=\"Non-endemic\",\" \", IF(COUNTRY_INFO!B11=0,\" \",COUNTRY_INFO!B11)))","v":" "},{"$f":"IF(INTRO!$E$39<>\"Non-endemic\", \" \", IF(INTRO!$E$37=\"Non-endemic\",\" \", IF(COUNTRY_INFO!C11=0,\" \",COUNTRY_INFO!C11)))","v":" "},{"$f":"IF(INTRO!$E$39<>\"Non-endemic\", 0, IF(INTRO!$E$37=\"Non-endemic\",0,IF(COUNTRY_INFO!$H11=1,COUNTRY_INFO!E11,0)))","v":0},{"$f":"IF(INTRO!$E$39<>\"Non-endemic\", 0, IF(INTRO!$E$37=\"Non-endemic\",0,IF(COUNTRY_INFO!$H11=1,COUNTRY_INFO!F11,0)))","v":0},{"$f":"IF(INTRO!$E$39<>\"Non-endemic\", 0, IF(INTRO!$E$37=\"Non-endemic\",0,IF(COUNTRY_INFO!$H11=1,COUNTRY_INFO!G11,0)))","v":0},0,{"$f":"IF(INTRO!$E$39=\"Non-endemic\",IF(INTRO!$E$37=\"Non-endemic\",\"Not required\",COUNTRY_INFO!P11),\"Treat with IVM\")","v":"Treat with IVM"},0,0,null,0,0]
[{"$f":"IF(INTRO!$E$39<>\"Non-endemic\", \" \", IF(INTRO!$E$37=\"Non-endemic\",\" \", IF(COUNTRY_INFO!A12=0,\" \",COUNTRY_INFO!A12)))","v":" "},{"$f":"IF(INTRO!$E$39<>\"Non-endemic\", \" \", IF(INTRO!$E$37=\"Non-endemic\",\" \", IF(COUNTRY_INFO!B12=0,\" \",COUNTRY_INFO!B12)))","v":" "},{"$f":"IF(INTRO!$E$39<>\"Non-endemic\", \" \", IF(INTRO!$E$37=\"Non-endemic\",\" \", IF(COUNTRY_INFO!C12=0,\" \",COUNTRY_INFO!C12)))","v":" "},{"$f":"IF(INTRO!$E$39<>\"Non-endemic\", 0, IF(INTRO!$E$37=\"Non-endemic\",0,IF(COUNTRY_INFO!$H12=1,COUNTRY_INFO!E12,0)))","v":0},{"$f":"IF(INTRO!$E$39<>\"Non-endemic\", 0, IF(INTRO!$E$37=\"Non-endemic\",0,IF(COUNTRY_INFO!$H12=1,COUNTRY_INFO!F12,0)))","v":0},{"$f":"IF(INTRO!$E$39<>\"Non-endemic\", 0, IF(INTRO!$E$37=\"Non-endemic\",0,IF(COUNTRY_INFO!$H12=1,COUNTRY_INFO!G12,0)))","v":0},0,{"$f":"IF(INTRO!$E$39=\"Non-endemic\",IF(INTRO!$E$37=\"Non-endemic\",\"Not required\",COUNTRY_INFO!P12),\"Treat with IVM\")","v":"Treat with IVM"},0,0,null,0,0]
[{"$f":"IF(INTRO!$E$39<>\"Non-endemic\", \" \", IF(INTRO!$E$37=\"Non-endemic\",\" \", IF(COUNTRY_INFO!A13=0,\" \",COUNTRY_INFO!A13)))","v":" "},{"$f":"IF(INTRO!$E$39<>\"Non-endemic\", \" \", IF(INTRO!$E$37=\"Non-endemic\",\" \", IF(COUNTRY_INFO!B13=0,\" \",COUNTRY_INFO!B13)))","v":" "},{"$f":"IF(INTRO!$E$39<>\"Non-endemic\", \" \", IF(INTRO!$E$37=\"Non-endemic\",\" \", IF(COUNTRY_INFO!C13=0,\" \",COUNTRY_INFO!C13)))","v":" "},{"$f":"IF(INTRO!$E$39<>\"Non-endemic\", 0, IF(INTRO!$E$37=\"Non-endemic\",0,IF(COUNTRY_INFO!$H13=1,COUNTRY_INFO!E13,0)))","v":0},{"$f":"IF(INTRO!$E$39<>\"Non-endemic\", 0, IF(INTRO!$E$37=\"Non-endemic\",0,IF(COUNTRY_INFO!$H13=1,COUNTRY_INFO!F13,0)))","v":0},{"$f":"IF(INTRO!$E$39<>\"Non-endemic\", 0, IF(INTRO!$E$37=\"Non-endemic\",0,IF(COUNTRY_INFO!$H13=1,COUNTRY_INFO!G13,0)))","v":0},0,{"$f":"IF(INTRO!$E$39=\"Non-endemic\",IF(INTRO!$E$37=\"Non-endemic\",\"Not required\",COUNTRY_INFO!P13),\"Treat with IVM\")","v":"Treat with IVM"},0,0,null,0,0]
[{"$f":"IF(INTRO!$E$39<>\"Non-endemic\", \" \", IF(INTRO!$E$37=\"Non-endemic\",\" \", IF(COUNTRY_INFO!A14=0,\" \",COUNTRY_INFO!A14)))","v":" "},{"$f":"IF(INTRO!$E$39<>\"Non-endemic\", \" \", IF(INTRO!$E$37=\"Non-endemic\",\" \", IF(COUNTRY_INFO!B14=0,\" \",COUNTRY_INFO!B14)))","v":" "},{"$f":"IF(INTRO!$E$39<>\"Non-endemic\", \" \", IF(INTRO!$E$37=\"Non-endemic\",\" \", IF(COUNTRY_INFO!C14=0,\" \",COUNTRY_INFO!C14)))","v":" "},{"$f":"IF(INTRO!$E$39<>\"Non-endemic\", 0, IF(INTRO!$E$37=\"Non-endemic\",0,IF(COUNTRY_INFO!$H14=1,COUNTRY_INFO!E14,0)))","v":0},{"$f":"IF(INTRO!$E$39<>\"Non-endemic\", 0, IF(INTRO!$E$37=\"Non-endemic\",0,IF(COUNTRY_INFO!$H14=1,COUNTRY_INFO!F14,0)))","v":0},{"$f":"IF(INTRO!$E$39<>\"Non-endemic\", 0, IF(INTRO!$E$37=\"Non-endemic\",0,IF(COUNTRY_INFO!$H14=1,COUNTRY_INFO!G14,0)))","v":0},0,{"$f":"IF(INTRO!$E$39=\"Non-endemic\",IF(INTRO!$E$37=\"Non-endemic\",\"Not required\",COUNTRY_INFO!P14),\"Treat with IVM\")","v":"Treat with IVM"},0,0,null,0,0]
[{"$f":"IF(INTRO!$E$39<>\"Non-endemic\", \" \", IF(INTRO!$E$37=\"Non-endemic\",\" \", IF(COUNTRY_INFO!A15=0,\" \",COUNTRY_INFO!A15)))","v":" "},{"$f":"IF(INTRO!$E$39<>\"Non-endemic\", \" \", IF(INTRO!$E$37=\"Non-endemic\",\" \", IF(COUNTRY_INFO!B15=0,\" \",COUNTRY_INFO!B15)))","v":" "},{"$f":"IF(INTRO!$E$39<>\"Non-endemic\", \" \", IF(INTRO!$E$37=\"Non-endemic\",\" \", IF(COUNTRY_INFO!C15=0,\" \",COUNTRY_INFO!C15)))","v":" "},{"$f":"IF(INTRO!$E$39<>\"Non-endemic\", 0, IF(INTRO!$E$37=\"Non-endemic\",0,IF(COUNTRY_INFO!$H15=1,COUNTRY_INFO!E15,0)))","v":0},{"$f":"IF(INTRO!$E$39<>\"Non-endemic\", 0, IF(INTRO!$E$37=\"Non-endemic\",0,IF(COUNTRY_INFO!$H15=1,COUNTRY_INFO!F15,0)))","v":0},{"$f":"IF(INTRO!$E$39<>\"Non-endemic\", 0, IF(INTRO!$E$37=\"Non-endemic\",0,IF(COUNTRY_INFO!$H15=1,COUNTRY_INFO!G15,0)))","v":0},0,{"$f":"IF(INTRO!$E$39=\"Non-endemic\",IF(INTRO!$E$37=\"Non-endemic\",\"Not required\",COUNTRY_INFO!P15),\"Treat with IVM\")","v":"Treat with IVM"},0,0,null,0,0]
[{"$f":"IF(INTRO!$E$39<>\"Non-endemic\", \" \", IF(INTRO!$E$37=\"Non-endemic\",\" \", IF(COUNTRY_INFO!A16=0,\" \",COUNTRY_INFO!A16)))","v":" "},{"$f":"IF(INTRO!$E$39<>\"Non-endemic\", \" \", IF(INTRO!$E$37=\"Non-endemic\",\" \", IF(COUNTRY_INFO!B16=0,\" \",COUNTRY_INFO!B16)))","v":" "},{"$f":"IF(INTRO!$E$39<>\"Non-endemic\", \" \", IF(INTRO!$E$37=\"Non-endemic\",\" \", IF(COUNTRY_INFO!C16=0,\" \",COUNTRY_INFO!C16)))","v":" "},{"$f":"IF(INTRO!$E$39<>\"Non-endemic\", 0, IF(INTRO!$E$37=\"Non-endemic\",0,IF(COUNTRY_INFO!$H16=1,COUNTRY_INFO!E16,0)))","v":0},{"$f":"IF(INTRO!$E$39<>\"Non-endemic\", 0, IF(INTRO!$E$37=\"Non-endemic\",0,IF(COUNTRY_INFO!$H16=1,COUNTRY_INFO!F16,0)))","v":0},{"$f":"IF(INTRO!$E$39<>\"Non-endemic\", 0, IF(INTRO!$E$37=\"Non-endemic\",0,IF(COUNTRY_INFO!$H16=1,COUNTRY_INFO!G16,0)))","v":0},0,{"$f":"IF(INTRO!$E$39=\"Non-endemic\",IF(INTRO!$E$37=\"Non-endemic\",\"Not required\",COUNTRY_INFO!P16),\"Treat with IVM\")","v":"Treat with IVM"},0,0,null,0,0]
[{"$f":"IF(INTRO!$E$39<>\"Non-endemic\", \" \", IF(INTRO!$E$37=\"Non-endemic\",\" \", IF(COUNTRY_INFO!A17=0,\" \",COUNTRY_INFO!A17)))","v":" "},{"$f":"IF(INTRO!$E$39<>\"Non-endemic\", \" \", IF(INTRO!$E$37=\"Non-endemic\",\" \", IF(COUNTRY_INFO!B17=0,\" \",COUNTRY_INFO!B17)))","v":" "},{"$f":"IF(INTRO!$E$39<>\"Non-endemic\", \" \", IF(INTRO!$E$37=\"Non-endemic\",\" \", IF(COUNTRY_INFO!C17=0,\" \",COUNTRY_INFO!C17)))","v":" "},{"$f":"IF(INTRO!$E$39<>\"Non-endemic\", 0, IF(INTRO!$E$37=\"Non-endemic\",0,IF(COUNTRY_INFO!$H17=1,COUNTRY_INFO!E17,0)))","v":0},{"$f":"IF(INTRO!$E$39<>\"Non-endemic\", 0, IF(INTRO!$E$37=\"Non-endemic\",0,IF(COUNTRY_INFO!$H17=1,COUNTRY_INFO!F17,0)))","v":0},{"$f":"IF(INTRO!$E$39<>\"Non-endemic\", 0, IF(INTRO!$E$37=\"Non-endemic\",0,IF(COUNTRY_INFO!$H17=1,COUNTRY_INFO!G17,0)))","v":0},0,{"$f":"IF(INTRO!$E$39=\"Non-endemic\",IF(INTRO!$E$37=\"Non-endemic\",\"Not required\",COUNTRY_INFO!P17),\"Treat with IVM\")","v":"Treat with IVM"},0,0,null,0,0]
[{"$f":"IF(INTRO!$E$39<>\"Non-endemic\", \" \", IF(INTRO!$E$37=\"Non-endemic\",\" \", IF(COUNTRY_INFO!A18=0,\" \",COUNTRY_INFO!A18)))","v":" "},{"$f":"IF(INTRO!$E$39<>\"Non-endemic\", \" \", IF(INTRO!$E$37=\"Non-endemic\",\" \", IF(COUNTRY_INFO!B18=0,\" \",COUNTRY_INFO!B18)))","v":" "},{"$f":"IF(INTRO!$E$39<>\"Non-endemic\", \" \", IF(INTRO!$E$37=\"Non-endemic\",\" \", IF(COUNTRY_INFO!C18=0,\" \",COUNTRY_INFO!C18)))","v":" "},{"$f":"IF(INTRO!$E$39<>\"Non-endemic\", 0, IF(INTRO!$E$37=\"Non-endemic\",0,IF(COUNTRY_INFO!$H18=1,COUNTRY_INFO!E18,0)))","v":0},{"$f":"IF(INTRO!$E$39<>\"Non-endemic\", 0, IF(INTRO!$E$37=\"Non-endemic\",0,IF(COUNTRY_INFO!$H18=1,COUNTRY_INFO!F18,0)))","v":0},{"$f":"IF(INTRO!$E$39<>\"Non-endemic\", 0, IF(INTRO!$E$37=\"Non-endemic\",0,IF(COUNTRY_INFO!$H18=1,COUNTRY_INFO!G18,0)))","v":0},0,{"$f":"IF(INTRO!$E$39=\"Non-endemic\",IF(INTRO!$E$37=\"Non-endemic\",\"Not required\",COUNTRY_INFO!P18),\"Treat with IVM\")","v":"Treat with IVM"},0,0,null,0,0]
[{"$f":"IF(INTRO!$E$39<>\"Non-endemic\", \" \", IF(INTRO!$E$37=\"Non-endemic\",\" \", IF(COUNTRY_INFO!A19=0,\" \",COUNTRY_INFO!A19)))","v":" "},{"$f":"IF(INTRO!$E$39<>\"Non-endemic\", \" \", IF(INTRO!$E$37=\"Non-endemic\",\" \", IF(COUNTRY_INFO!B19=0,\" \",COUNTRY_INFO!B19)))","v":" "},{"$f":"IF(INTRO!$E$39<>\"Non-endemic\", \" \", IF(INTRO!$E$37=\"Non-endemic\",\" \", IF(COUNTRY_INFO!C19=0,\" \",COUNTRY_INFO!C19)))","v":" "},{"$f":"IF(INTRO!$E$39<>\"Non-endemic\", 0, IF(INTRO!$E$37=\"Non-endemic\",0,IF(COUNTRY_INFO!$H19=1,COUNTRY_INFO!E19,0)))","v":0},{"$f":"IF(INTRO!$E$39<>\"Non-endemic\", 0, IF(INTRO!$E$37=\"Non-endemic\",0,IF(COUNTRY_INFO!$H19=1,COUNTRY_INFO!F19,0)))","v":0},{"$f":"IF(INTRO!$E$39<>\"Non-endemic\", 0, IF(INTRO!$E$37=\"Non-endemic\",0,IF(COUNTRY_INFO!$H19=1,COUNTRY_INFO!G19,0)))","v":0},0,{"$f":"IF(INTRO!$E$39=\"Non-endemic\",IF(INTRO!$E$37=\"Non-endemic\",\"Not required\",COUNTRY_INFO!P19),\"Treat with IVM\")","v":"Treat with IVM"},0,0,null,0,0]
[{"$f":"IF(INTRO!$E$39<>\"Non-endemic\", \" \", IF(INTRO!$E$37=\"Non-endemic\",\" \", IF(COUNTRY_INFO!A20=0,\" \",COUNTRY_INFO!A20)))","v":" "},{"$f":"IF(INTRO!$E$39<>\"Non-endemic\", \" \", IF(INTRO!$E$37=\"Non-endemic\",\" \", IF(COUNTRY_INFO!B20=0,\" \",COUNTRY_INFO!B20)))","v":" "},{"$f":"IF(INTRO!$E$39<>\"Non-endemic\", \" \", IF(INTRO!$E$37=\"Non-endemic\",\" \", IF(COUNTRY_INFO!C20=0,\" \",COUNTRY_INFO!C20)))","v":" "},{"$f":"IF(INTRO!$E$39<>\"Non-endemic\", 0, IF(INTRO!$E$37=\"Non-endemic\",0,IF(COUNTRY_INFO!$H20=1,COUNTRY_INFO!E20,0)))","v":0},{"$f":"IF(INTRO!$E$39<>\"Non-endemic\", 0, IF(INTRO!$E$37=\"Non-endemic\",0,IF(COUNTRY_INFO!$H20=1,COUNTRY_INFO!F20,0)))","v":0},{"$f":"IF(INTRO!$E$39<>\"Non-endemic\", 0, IF(INTRO!$E$37=\"Non-endemic\",0,IF(COUNTRY_INFO!$H20=1,COUNTRY_INFO!G20,0)))","v":0},0,{"$f":"IF(INTRO!$E$39=\"Non-endemic\",IF(INTRO!$E$37=\"Non-endemic\",\"Not required\",COUNTRY_INFO!P20),\"Treat with IVM\")","v":"Treat with IVM"},0,0,null,0,0]
[{"$f":"IF(INTRO!$E$39<>\"Non-endemic\", \" \", IF(INTRO!$E$37=\"Non-endemic\",\" \", IF(COUNTRY_INFO!A21=0,\" \",COUNTRY_INFO!A21)))","v":" "},{"$f":"IF(INTRO!$E$39<>\"Non-endemic\", \" \", IF(INTRO!$E$37=\"Non-endemic\",\" \", IF(COUNTRY_INFO!B21=0,\" \",COUNTRY_INFO!B21)))","v":" "},{"$f":"IF(INTRO!$E$39<>\"Non-endemic\", \" \", IF(INTRO!$E$37=\"Non-endemic\",\" \", IF(COUNTRY_INFO!C21=0,\" \",COUNTRY_INFO!C21)))","v":" "},{"$f":"IF(INTRO!$E$39<>\"Non-endemic\", 0, IF(INTRO!$E$37=\"Non-endemic\",0,IF(COUNTRY_INFO!$H21=1,COUNTRY_INFO!E21,0)))","v":0},{"$f":"IF(INTRO!$E$39<>\"Non-endemic\", 0, IF(INTRO!$E$37=\"Non-endemic\",0,IF(COUNTRY_INFO!$H21=1,COUNTRY_INFO!F21,0)))","v":0},{"$f":"IF(INTRO!$E$39<>\"Non-endemic\", 0, IF(INTRO!$E$37=\"Non-endemic\",0,IF(COUNTRY_INFO!$H21=1,COUNTRY_INFO!G21,0)))","v":0},0,{"$f":"IF(INTRO!$E$39=\"Non-endemic\",IF(INTRO!$E$37=\"Non-endemic\",\"Not required\",COUNTRY_INFO!P21),\"Treat with IVM\")","v":"Treat with IVM"},0,0,null,0,0]
[{"$f":"IF(INTRO!$E$39<>\"Non-endemic\", \" \", IF(INTRO!$E$37=\"Non-endemic\",\" \", IF(COUNTRY_INFO!A22=0,\" \",COUNTRY_INFO!A22)))","v":" "},{"$f":"IF(INTRO!$E$39<>\"Non-endemic\", \" \", IF(INTRO!$E$37=\"Non-endemic\",\" \", IF(COUNTRY_INFO!B22=0,\" \",COUNTRY_INFO!B22)))","v":" "},{"$f":"IF(INTRO!$E$39<>\"Non-endemic\", \" \", IF(INTRO!$E$37=\"Non-endemic\",\" \", IF(COUNTRY_INFO!C22=0,\" \",COUNTRY_INFO!C22)))","v":" "},{"$f":"IF(INTRO!$E$39<>\"Non-endemic\", 0, IF(INTRO!$E$37=\"Non-endemic\",0,IF(COUNTRY_INFO!$H22=1,COUNTRY_INFO!E22,0)))","v":0},{"$f":"IF(INTRO!$E$39<>\"Non-endemic\", 0, IF(INTRO!$E$37=\"Non-endemic\",0,IF(COUNTRY_INFO!$H22=1,COUNTRY_INFO!F22,0)))","v":0},{"$f":"IF(INTRO!$E$39<>\"Non-endemic\", 0, IF(INTRO!$E$37=\"Non-endemic\",0,IF(COUNTRY_INFO!$H22=1,COUNTRY_INFO!G22,0)))","v":0},0,{"$f":"IF(INTRO!$E$39=\"Non-endemic\",IF(INTRO!$E$37=\"Non-endemic\",\"Not required\",COUNTRY_INFO!P22),\"Treat with IVM\")","v":"Treat with IVM"},0,0,null,0,0]

{"sheet":"ALB_MBD","index":3,"n_rows":22,"n_cols":27,"rows_kept":22,"cut":false,"hidden":false,"merged":[[6,0,7,0],[6,1,7,1],[6,2,7,2],[6,3,7,3],[6,23,7,23],[6,21,7,21],[6,18,7,18],[6,19,7,19],[6,20,7,20],[6,4,7,4],[6,5,7,5],[6,6,7,6],[6,7,7,7],[6,14,6,17],[5,9,7,9],[6,10,6,13],[3,0,3,2],[3,6,3,7],[5,0,5,2],[5,6,5,7],[5,3,5,5],[5,10,5,17],[5,8,7,8],[5,18,5,23],[6,26,7,26],[5,24,5,26],[6,24,7,24],[6,25,7,25],[6,22,7,22]]}
["Albendazole (ALB) and Mebendazole (MBD)"]
["Administrative structure, eligible population by age group, treatment plan and information about tablets"]
[]
["TOTAL",null,null,{"$f":"SUM(D$9:D$1000)","v":749673},{"$f":"SUM(E$9:E$1000)","v":2268208},{"$f":"SUM(F$9:F$1000)","v":3017881},null,null,{"$f":"SUM(I$9:I$1000)","v":2858692},null,{"$f":"SUM(K$9:K$1000)","v":743177},{"$f":"SUM(L$9:L$1000)","v":1385052},{"$f":"SUM(M$9:M$1000)","v":0},{"$f":"SUM(N$9:N$1000)","v":2128229},{"$f":"SUM(O$9:O$1000)","v":0},{"$f":"SUM(P$9:P$1000)","v":0},0,0,0,2858692,14296,0,1385052,6930,0,0,0]
[]
["Country administrative structure",null,null,"Population requiring treatment with ALB/MBD",null,null,"Treatment plan",null,"People covered by PELF with ALB","Select medicine for treatment of STH","Target population",null,null,null,null,null,null,null,"Albendazole (ALB)",null,null,null,null,null,"Mebendazole (MBD)"]
["Country","Province/State","District","PreSAC","SAC","Total","LF","STH",null,null,"STH (ALB)",null,null,null,"STH (MBD)",null,null,null,"Remaining in stock (LF)","Tablets to be procured (LF)","Bottle (400 mg)\n200 tablets (LF)","Remaining in stock (STH)","Tablets to be procured for SAC (STH)","Bottle (400 mg)\n200 tablets (STH)","Remaining in stock","Tablets to be procured for SAC","Bottles (500 mg)\n150 tablets"]
[null,null,null,null,null,null,null,null,null,null,"PreSAC","SAC","Other","Total","PreSAC","SAC","Other","Total"]
[{"$f":"IF(AND(INTRO!$E$37=\"Non-endemic\",INTRO!$E$41=\"Non-endemic\"),\" \",IF(COUNTRY_INFO!A9=0,\" \",COUNTRY_INFO!A9))","v":"Sierra Leone"},{"$f":"IF(AND(INTRO!$E$37=\"Non-endemic\",INTRO!$E$41=\"Non-endemic\"),\" \",IF(COUNTRY_INFO!B9=0,\" \",COUNTRY_INFO!B9))","v":"SOUHTERN"},{"$f":"IF(AND(INTRO!$E$37=\"Non-endemic\",INTRO!$E$41=\"Non-endemic\"),\" \",IF(COUNTRY_INFO!C9=0,\" \",COUNTRY_INFO!C9))","v":"BO"},{"$f":"IF(AND(INTRO!$E$37=\"Non-endemic\",INTRO!$E$41=\"Non-endemic\"),0,IF(AND(OR(COUNTRY_INFO!$H9=0,COUNTRY_INFO!$H9=4,COUNTRY_INFO!$H9=99),OR(COUNTRY_INFO!$J9=0,COUNTRY_INFO!$J9=4)),0,COUNTRY_INFO!$E9))","v":53340},{"$f":"IF(AND(INTRO!$E$37=\"Non-endemic\",INTRO!$E$41=\"Non-endemic\"),0,IF(AND(OR(COUNTRY_INFO!$H9=0,COUNTRY_INFO!$H9=4,COUNTRY_INFO!$H9=99),OR(COUNTRY_INFO!$J9=0,COUNTRY_INFO!$J9=4)),0,COUNTRY_INFO!$F9))","v":161386},{"$f":"SUM(D9:E9)","v":214726},{"$f":"IF(AND(INTRO!$E$37=\"Non-endemic\",INTRO!$E$41=\"Non-endemic\"),0,COUNTRY_INFO!P9)","v":0},{"$f":"IF(AND(INTRO!$E$37=\"Non-endemic\",INTRO!$E$41=\"Non-endemic\"),0,COUNTRY_INFO!R9)","v":1},{"$f":"IF(INTRO!$E$39=\"Non-endemic\",IF($G9=1,DEC!I9,0),IF($G9=1,IVM!G9,0))","v":0},"ALB",{"$f":"IF($J9=\"ALB\", IF(INTRO!$E$39=\"Non-endemic\", IF($H9<>0, IF($I9=0, $D9*$H9, $D9*($H9-$G9)), 0), $D9*$H9), 0)","v":53340},{"$f":"IF($J9=\"ALB\", IF($H9<>0, IF($I9=0, $E9*$H9, $E9*($H9-$G9)),0), 0)","v":161386},null,{"$f":"SUM(K9:M9)","v":214726},{"$f":"IF($J9=\"MBD\", IF(INTRO!$E$39=\"Non-endemic\", IF($H9<>0, IF($I9=0, $D9*$H9, $D9*($H9-$G9)), 0), $D9*$H9), 0)","v":0},{"$f":"IF($J9=\"MBD\", IF($H9<>0,IF($I9=0, $E9*$H9, $E9*($H9-$G9)),0), 0 )","v":0},null,{"$f":"SUM(O9:Q9)","v":0},0,{"$f":"IF($I9>$S9, $I9-$S9,0)","v":0},{"$f":"ROUNDUP($I9/200,0)","v":0},0,{"$f":"IF($L9>$V9,$L9-$V9,0)","v":161386},{"$f":"ROUNDUP($L9/200,0)","v":807},null,{"$f":"IF($P9>$Y9,$P9-$Y9,0)","v":0},{"$f":"ROUNDUP($P9/150,0)","v":0}]
[{"$f":"IF(AND(INTRO!$E$37=\"Non-endemic\",INTRO!$E$41=\"Non-endemic\"),\" \",IF(COUNTRY_INFO!A10=0,\" \",COUNTRY_INFO!A10))","v":"Sierra Leone"},{"$f":"IF(AND(INTRO!$E$37=\"Non-endemic\",INTRO!$E$41=\"Non-endemic\"),\" \",IF(COUNTRY_INFO!B10=0,\" \",COUNTRY_INFO!B10))","v":"SOUHTERN"},{"$f":"IF(AND(INTRO!$E$37=\"Non-endemic\",INTRO!$E$41=\"Non-endemic\"),\" \",IF(COUNTRY_INFO!C10=0,\" \",COUNTRY_INFO!C10))","v":"MOYAMBA "},{"$f":"IF(AND(INTRO!$E$37=\"Non-endemic\",INTRO!$E$41=\"Non-endemic\"),0,IF(AND(OR(COUNTRY_INFO!$H10=0,COUNTRY_INFO!$H10=4,COUNTRY_INFO!$H10=99),OR(COUNTRY_INFO!$J10=0,COUNTRY_INFO!$J10=4)),0,COUNTRY_INFO!$E10))","v":32158},{"$f":"IF(AND(INTRO!$E$37=\"Non-endemic\",INTRO!$E$41=\"Non-endemic\"),0,IF(AND(OR(COUNTRY_INFO!$H10=0,COUNTRY_INFO!$H10=4,COUNTRY_INFO!$H10=99),OR(COUNTRY_INFO!$J10=0,COUNTRY_INFO!$J10=4)),0,COUNTRY_INFO!$F10))","v":97298},129456,{"$f":"IF(AND(INTRO!$E$37=\"Non-endemic\",INTRO!$E$41=\"Non-endemic\"),0,COUNTRY_INFO!P10)","v":0},{"$f":"IF(AND(INTRO!$E$37=\"Non-endemic\",INTRO!$E$41=\"Non-endemic\"),0,COUNTRY_INFO!R10)","v":1},{"$f":"IF(INTRO!$E$39=\"Non-endemic\",IF($G10=1,DEC!I10,0),IF($G10=1,IVM!G10,0))","v":0},"ALB",{"$f":"IF($J10=\"ALB\", IF(INTRO!$E$39=\"Non-endemic\", IF($H10<>0, IF($I10=0, $D10*$H10, $D10*($H10-$G10)), 0), $D10*$H10), 0)","v":32158},97298,null,129456,{"$f":"IF($J10=\"MBD\", IF(INTRO!$E$39=\"Non-endemic\", IF($H10<>0, IF($I10=0, $D10*$H10, $D10*($H10-$G10)), 0), $D10*$H10), 0)","v":0},0,null,0,0,0,0,0,97298,487,null,0,0]
[{"$f":"IF(AND(INTRO!$E$37=\"Non-endemic\",INTRO!$E$41=\"Non-endemic\"),\" \",IF(COUNTRY_INFO!A11=0,\" \",COUNTRY_INFO!A11))","v":"Sierra Leone"},{"$f":"IF(AND(INTRO!$E$37=\"Non-endemic\",INTRO!$E$41=\"Non-endemic\"),\" \",IF(COUNTRY_INFO!B11=0,\" \",COUNTRY_INFO!B11))","v":"SOUHTERN"},{"$f":"IF(AND(INTRO!$E$37=\"Non-endemic\",INTRO!$E$41=\"Non-endemic\"),\" \",IF(COUNTRY_INFO!C11=0,\" \",COUNTRY_INFO!C11))","v":"PUJEHUN "},{"$f":"IF(AND(INTRO!$E$37=\"Non-endemic\",INTRO!$E$41=\"Non-endemic\"),0,IF(AND(OR(COUNTRY_INFO!$H11=0,COUNTRY_INFO!$H11=4,COUNTRY_INFO!$H11=99),OR(COUNTRY_INFO!$J11=0,COUNTRY_INFO!$J11=4)),0,COUNTRY_INFO!$E11))","v":31800},{"$f":"IF(AND(INTRO!$E$37=\"Non-endemic\",INTRO!$E$41=\"Non-endemic\"),0,IF(AND(OR(COUNTRY_INFO!$H11=0,COUNTRY_INFO!$H11=4,COUNTRY_INFO!$H11=99),OR(COUNTRY_INFO!$J11=0,COUNTRY_INFO!$J11=4)),0,COUNTRY_INFO!$F11))","v":96214},128014,{"$f":"IF(AND(INTRO!$E$37=\"Non-endemic\",INTRO!$E$41=\"Non-endemic\"),0,COUNTRY_INFO!P11)","v":0},{"$f":"IF(AND(INTRO!$E$37=\"Non-endemic\",INTRO!$E$41=\"Non-endemic\"),0,COUNTRY_INFO!R11)","v":1},{"$f":"IF(INTRO!$E$39=\"Non-endemic\",IF($G11=1,DEC!I11,0),IF($G11=1,IVM!G11,0))","v":0},"ALB",{"$f":"IF($J11=\"ALB\", IF(INTRO!$E$39=\"Non-endemic\", IF($H11<>0, IF($I11=0, $D11*$H11, $D11*($H11-$G11)), 0), $D11*$H11), 0)","v":31800},96214,null,128014,{"$f":"IF($J11=\"MBD\", IF(INTRO!$E$39=\"Non-endemic\", IF($H11<>0, IF($I11=0, $D11*$H11, $D11*($H11-$G11)), 0), $D11*$H11), 0)","v":0},0,null,0,0,0,0,0,96214,482,null,0,0]
[{"$f":"IF(AND(INTRO!$E$37=\"Non-endemic\",INTRO!$E$41=\"Non-endemic\"),\" \",IF(COUNTRY_INFO!A12=0,\" \",COUNTRY_INFO!A12))","v":"Sierra Leone"},{"$f":"IF(AND(INTRO!$E$37=\"Non-endemic\",INTRO!$E$41=\"Non-endemic\"),\" \",IF(COUNTRY_INFO!B12=0,\" \",COUNTRY_INFO!B12))","v":"SOUHTERN"},{"$f":"IF(AND(INTRO!$E$37=\"Non-endemic\",INTRO!$E$41=\"Non-endemic\"),\" \",IF(COUNTRY_INFO!C12=0,\" \",COUNTRY_INFO!C12))","v":"BONTHE "},{"$f":"IF(AND(INTRO!$E$37=\"Non-endemic\",INTRO!$E$41=\"Non-endemic\"),0,IF(AND(OR(COUNTRY_INFO!$H12=0,COUNTRY_INFO!$H12=4,COUNTRY_INFO!$H12=99),OR(COUNTRY_INFO!$J12=0,COUNTRY_INFO!$J12=4)),0,COUNTRY_INFO!$E12))","v":17837},{"$f":"IF(AND(INTRO!$E$37=\"Non-endemic\",INTRO!$E$41=\"Non-endemic\"),0,IF(AND(OR(COUNTRY_INFO!$H12=0,COUNTRY_INFO!$H12=4,COUNTRY_INFO!$H12=99),OR(COUNTRY_INFO!$J12=0,COUNTRY_INFO!$J12=4)),0,COUNTRY_INFO!$F12))","v":53968},71805,{"$f":"IF(AND(INTRO!$E$37=\"Non-endemic\",INTRO!$E$41=\"Non-endemic\"),0,COUNTRY_INFO!P12)","v":0},{"$f":"IF(AND(INTRO!$E$37=\"Non-endemic\",INTRO!$E$41=\"Non-endemic\"),0,COUNTRY_INFO!R12)","v":1},{"$f":"IF(INTRO!$E$39=\"Non-endemic\",IF($G12=1,DEC!I12,0),IF($G12=1,IVM!G12,0))","v":0},"ALB",{"$f":"IF($J12=\"ALB\", IF(INTRO!$E$39=\"Non-endemic\", IF($H12<>0, IF($I12=0, $D12*$H12, $D12*($H12-$G12)), 0), $D12*$H12), 0)","v":17837},53968,null,71805,{"$f":"IF($J12=\"MBD\", IF(INTRO!$E$39=\"Non-endemic\", IF($H12<>0, IF($I12=0, $D12*$H12, $D12*($H12-$G12)), 0), $D12*$H12), 0)","v":0},0,null,0,0,0,0,0,53968,270,null,0,0]
[{"$f":"IF(AND(INTRO!$E$37=\"Non-endemic\",INTRO!$E$41=\"Non-endemic\"),\" \",IF(COUNTRY_INFO!A13=0,\" \",COUNTRY_INFO!A13))","v":"Sierra Leone"},{"$f":"IF(AND(INTRO!$E$37=\"Non-endemic\",INTRO!$E$41=\"Non-endemic\"),\" \",IF(COUNTRY_INFO!B13=0,\" \",COUNTRY_INFO!B13))","v":"EASTERN"},{"$f":"IF(AND(INTRO!$E$37=\"Non-endemic\",INTRO!$E$41=\"Non-endemic\"),\" \",IF(COUNTRY_INFO!C13=0,\" \",COUNTRY_INFO!C13))","v":"KENEMA"},{"$f":"IF(AND(INTRO!$E$37=\"Non-endemic\",INTRO!$E$41=\"Non-endemic\"),0,IF(AND(OR(COUNTRY_INFO!$H13=0,COUNTRY_INFO!$H13=4,COUNTRY_INFO!$H13=99),OR(COUNTRY_INFO!$J13=0,COUNTRY_INFO!$J13=4)),0,COUNTRY_INFO!$E13))","v":70201},{"$f":"IF(AND(INTRO!$E$37=\"Non-endemic\",INTRO!$E$41=\"Non-endemic\"),0,IF(AND(OR(COUNTRY_INFO!$H13=0,COUNTRY_INFO!$H13=4,COUNTRY_INFO!$H13=99),OR(COUNTRY_INFO!$J13=0,COUNTRY_INFO!$J13=4)),0,COUNTRY_INFO!$F13))","v":212401},282602,{"$f":"IF(AND(INTRO!$E$37=\"Non-endemic\",INTRO!$E$41=\"Non-endemic\"),0,COUNTRY_INFO!P13)","v":1},{"$f":"IF(AND(INTRO!$E$37=\"Non-endemic\",INTRO!$E$41=\"Non-endemic\"),0,COUNTRY_INFO!R13)","v":1},{"$f":"IF(INTRO!$E$39=\"Non-endemic\",IF($G13=1,DEC!I13,0),IF($G13=1,IVM!G13,0))","v":703171},"ALB",{"$f":"IF($J13=\"ALB\", IF(INTRO!$E$39=\"Non-endemic\", IF($H13<>0, IF($I13=0, $D13*$H13, $D13*($H13-$G13)), 0), $D13*$H13), 0)","v":70201},0,null,70201,{"$f":"IF($J13=\"MBD\", IF(INTRO!$E$39=\"Non-endemic\", IF($H13<>0, IF($I13=0, $D13*$H13, $D13*($H13-$G13)), 0), $D13*$H13), 0)","v":0},0,null,0,0,703171,3516,0,0,0,null,0,0]
[{"$f":"IF(AND(INTRO!$E$37=\"Non-endemic\",INTRO!$E$41=\"Non-endemic\"),\" \",IF(COUNTRY_INFO!A14=0,\" \",COUNTRY_INFO!A14))","v":"Sierra Leone"},{"$f":"IF(AND(INTRO!$E$37=\"Non-endemic\",INTRO!$E$41=\"Non-endemic\"),\" \",IF(COUNTRY_INFO!B14=0,\" \",COUNTRY_INFO!B14))","v":"EASTERN"},{"$f":"IF(AND(INTRO!$E$37=\"Non-endemic\",INTRO!$E$41=\"Non-endemic\"),\" \",IF(COUNTRY_INFO!C14=0,\" \",COUNTRY_INFO!C14))","v":"KONO"},{"$f":"IF(AND(INTRO!$E$37=\"Non-endemic\",INTRO!$E$41=\"Non-endemic\"),0,IF(AND(OR(COUNTRY_INFO!$H14=0,COUNTRY_INFO!$H14=4,COUNTRY_INFO!$H14=99),OR(COUNTRY_INFO!$J14=0,COUNTRY_INFO!$J14=4)),0,COUNTRY_INFO!$E14))","v":52430},{"$f":"IF(AND(INTRO!$E$37=\"Non-endemic\",INTRO!$E$41=\"Non-endemic\"),0,IF(AND(OR(COUNTRY_INFO!$H14=0,COUNTRY_INFO!$H14=4,COUNTRY_INFO!$H14=99),OR(COUNTRY_INFO!$J14=0,COUNTRY_INFO!$J14=4)),0,COUNTRY_INFO!$F14))","v":158634},211064,{"$f":"IF(AND(INTRO!$E$37=\"Non-endemic\",INTRO!$E$41=\"Non-endemic\"),0,COUNTRY_INFO!P14)","v":0},{"$f":"IF(AND(INTRO!$E$37=\"Non-endemic\",INTRO!$E$41=\"Non-endemic\"),0,COUNTRY_INFO!R14)","v":0},{"$f":"IF(INTRO!$E$39=\"Non-endemic\",IF($G14=1,DEC!I14,0),IF($G14=1,IVM!G14,0))","v":0},"ALB",{"$f":"IF($J14=\"ALB\", IF(INTRO!$E$39=\"Non-endemic\", IF($H14<>0, IF($I14=0, $D14*$H14, $D14*($H14-$G14)), 0), $D14*$H14), 0)","v":0},0,null,0,{"$f":"IF($J14=\"MBD\", IF(INTRO!$E$39=\"Non-endemic\", IF($H14<>0, IF($I14=0, $D14*$H14, $D14*($H14-$G14)), 0), $D14*$H14), 0)","v":0},0,null,0,0,0,0,0,0,0,null,0,0]
[{"$f":"IF(AND(INTRO!$E$37=\"Non-endemic\",INTRO!$E$41=\"Non-endemic\"),\" \",IF(COUNTRY_INFO!A15=0,\" \",COUNTRY_INFO!A15))","v":"Sierra Leone"},{"$f":"IF(AND(INTRO!$E$37=\"Non-endemic\",INTRO!$E$41=\"Non-endemic\"),\" \",IF(COUNTRY_INFO!B15=0,\" \",COUNTRY_INFO!B15))","v":"EASTERN"},{"$f":"IF(AND(INTRO!$E$37=\"Non-endemic\",INTRO!$E$41=\"Non-endemic\"),\" \",IF(COUNTRY_INFO!C15=0,\" \",COUNTRY_INFO!C15))","v":"KAILAHUN "},{"$f":"IF(AND(INTRO!$E$37=\"Non-endemic\",INTRO!$E$41=\"Non-endemic\"),0,IF(AND(OR(COUNTRY_INFO!$H15=0,COUNTRY_INFO!$H15=4,COUNTRY_INFO!$H15=99),OR(COUNTRY_INFO!$J15=0,COUNTRY_INFO!$J15=4)),0,COUNTRY_INFO!$E15))","v":64716},{"$f":"IF(AND(INTRO!$E$37=\"Non-endemic\",INTRO!$E$41=\"Non-endemic\"),0,IF(AND(OR(COUNTRY_INFO!$H15=0,COUNTRY_INFO!$H15=4,COUNTRY_INFO!$H15=99),OR(COUNTRY_INFO!$J15=0,COUNTRY_INFO!$J15=4)),0,COUNTRY_INFO!$F15))","v":195804},260520,{"$f":"IF(AND(INTRO!$E$37=\"Non-endemic\",INTRO!$E$41=\"Non-endemic\"),0,COUNTRY_INFO!P15)","v":1},{"$f":"IF(AND(INTRO!$E$37=\"Non-endemic\",INTRO!$E$41=\"Non-endemic\"),0,COUNTRY_INFO!R15)","v":1},{"$f":"IF(INTRO!$E$39=\"Non-endemic\",IF($G15=1,DEC!I15,0),IF($G15=1,IVM!G15,0))","v":648226},"ALB",{"$f":"IF($J15=\"ALB\", IF(INTRO!$E$39=\"Non-endemic\", IF($H15<>0, IF($I15=0, $D15*$H15, $D15*($H15-$G15)), 0), $D15*$H15), 0)","v":64716},0,null,64716,{"$f":"IF($J15=\"MBD\", IF(INTRO!$E$39=\"Non-endemic\", IF($H15<>0, IF($I15=0, $D15*$H15, $D15*($H15-$G15)), 0), $D15*$H15), 0)","v":0},0,null,0,0,648226,3242,0,0,0,null,0,0]
[{"$f":"IF(AND(INTRO!$E$37=\"Non-endemic\",INTRO!$E$41=\"Non-endemic\"),\" \",IF(COUNTRY_INFO!A16=0,\" \",COUNTRY_INFO!A16))","v":"Sierra Leone"},{"$f":"IF(AND(INTRO!$E$37=\"Non-endemic\",INTRO!$E$41=\"Non-endemic\"),\" \",IF(COUNTRY_INFO!B16=0,\" \",COUNTRY_INFO!B16))","v":"NORTHERN"},{"$f":"IF(AND(INTRO!$E$37=\"Non-endemic\",INTRO!$E$41=\"Non-endemic\"),\" \",IF(COUNTRY_INFO!C16=0,\" \",COUNTRY_INFO!C16))","v":"BOMBALI"},{"$f":"IF(AND(INTRO!$E$37=\"Non-endemic\",INTRO!$E$41=\"Non-endemic\"),0,IF(AND(OR(COUNTRY_INFO!$H16=0,COUNTRY_INFO!$H16=4,COUNTRY_INFO!$H16=99),OR(COUNTRY_INFO!$J16=0,COUNTRY_INFO!$J16=4)),0,COUNTRY_INFO!$E16))","v":59093},{"$f":"IF(AND(INTRO!$E$37=\"Non-endemic\",INTRO!$E$41=\"Non-endemic\"),0,IF(AND(OR(COUNTRY_INFO!$H16=0,COUNTRY_INFO!$H16=4,COUNTRY_INFO!$H16=99),OR(COUNTRY_INFO!$J16=0,COUNTRY_INFO!$J16=4)),0,COUNTRY_INFO!$F16))","v":178791},237884,{"$f":"IF(AND(INTRO!$E$37=\"Non-endemic\",INTRO!$E$41=\"Non-endemic\"),0,COUNTRY_INFO!P16)","v":1},{"$f":"IF(AND(INTRO!$E$37=\"Non-endemic\",INTRO!$E$41=\"Non-endemic\"),0,COUNTRY_INFO!R16)","v":1},{"$f":"IF(INTRO!$E$39=\"Non-endemic\",IF($G16=1,DEC!I16,0),IF($G16=1,IVM!G16,0))","v":591903},"ALB",{"$f":"IF($J16=\"ALB\", IF(INTRO!$E$39=\"Non-endemic\", IF($H16<>0, IF($I16=0, $D16*$H16, $D16*($H16-$G16)), 0), $D16*$H16), 0)","v":59093},0,null,59093,{"$f":"IF($J16=\"MBD\", IF(INTRO!$E$39=\"Non-endemic\", IF($H16<>0, IF($I16=0, $D16*$H16, $D16*($H16-$G16)), 0), $D16*$H16), 0)","v":0},0,null,0,0,591903,2960,0,0,0,null,0,0]
[{"$f":"IF(AND(INTRO!$E$37=\"Non-endemic\",INTRO!$E$41=\"Non-endemic\"),\" \",IF(COUNTRY_INFO!A17=0,\" \",COUNTRY_INFO!A17))","v":"Sierra Leone"},{"$f":"IF(AND(INTRO!$E$37=\"Non-endemic\",INTRO!$E$41=\"Non-endemic\"),\" \",IF(COUNTRY_INFO!B17=0,\" \",COUNTRY_INFO!B17))","v":"NORTHERN"},{"$f":"IF(AND(INTRO!$E$37=\"Non-endemic\",INTRO!$E$41=\"Non-endemic\"),\" \",IF(COUNTRY_INFO!C17=0,\" \",COUNTRY_INFO!C17))","v":"TONKOLILI"},{"$f":"IF(AND(INTRO!$E$37=\"Non-endemic\",INTRO!$E$41=\"Non-endemic\"),0,IF(AND(OR(COUNTRY_INFO!$H17=0,COUNTRY_INFO!$H17=4,COUNTRY_INFO!$H17=99),OR(COUNTRY_INFO!$J17=0,COUNTRY_INFO!$J17=4)),0,COUNTRY_INFO!$E17))","v":49393},{"$f":"IF(AND(INTRO!$E$37=\"Non-endemic\",INTRO!$E$41=\"Non-endemic\"),0,IF(AND(OR(COUNTRY_INFO!$H17=0,COUNTRY_INFO!$H17=4,COUNTRY_INFO!$H17=99),OR(COUNTRY_INFO!$J17=0,COUNTRY_INFO!$J17=4)),0,COUNTRY_INFO!$F17))","v":149442},198835,{"$f":"IF(AND(INTRO!$E$37=\"Non-endemic\",INTRO!$E$41=\"Non-endemic\"),0,COUNTRY_INFO!P17)","v":0},{"$f":"IF(AND(INTRO!$E$37=\"Non-endemic\",INTRO!$E$41=\"Non-endemic\"),0,COUNTRY_INFO!R17)","v":1},{"$f":"IF(INTRO!$E$39=\"Non-endemic\",IF($G17=1,DEC!I17,0),IF($G17=1,IVM!G17,0))","v":0},"ALB",{"$f":"IF($J17=\"ALB\", IF(INTRO!$E$39=\"Non-endemic\", IF($H17<>0, IF($I17=0, $D17*$H17, $D17*($H17-$G17)), 0), $D17*$H17), 0)","v":49393},149442,null,198835,{"$f":"IF($J17=\"MBD\", IF(INTRO!$E$39=\"Non-endemic\", IF($H17<>0, IF($I17=0, $D17*$H17, $D17*($H17-$G17)), 0), $D17*$H17), 0)","v":0},0,null,0,0,0,0,0,149442,748,null,0,0]
[{"$f":"IF(AND(INTRO!$E$37=\"Non-endemic\",INTRO!$E$41=\"Non-endemic\"),\" \",IF(COUNTRY_INFO!A18=0,\" \",COUNTRY_INFO!A18))","v":"Sierra Leone"},{"$f":"IF(AND(INTRO!$E$37=\"Non-endemic\",INTRO!$E$41=\"Non-endemic\"),\" \",IF(COUNTRY_INFO!B18=0,\" \",COUNTRY_INFO!B18))","v":"NORTHERN"},{"$f":"IF(AND(INTRO!$E$37=\"Non-endemic\",INTRO!$E$41=\"Non-endemic\"),\" \",IF(COUNTRY_INFO!C18=0,\" \",COUNTRY_INFO!C18))","v":"PORT LOKO"},{"$f":"IF(AND(INTRO!$E$37=\"Non-endemic\",INTRO!$E$41=\"Non-endemic\"),0,IF(AND(OR(COUNTRY_INFO!$H18=0,COUNTRY_INFO!$H18=4,COUNTRY_INFO!$H18=99),OR(COUNTRY_INFO!$J18=0,COUNTRY_INFO!$J18=4)),0,COUNTRY_INFO!$E18))","v":57132},{"$f":"IF(AND(INTRO!$E$37=\"Non-endemic\",INTRO!$E$41=\"Non-endemic\"),0,IF(AND(OR(COUNTRY_INFO!$H18=0,COUNTRY_INFO!$H18=4,COUNTRY_INFO!$H18=99),OR(COUNTRY_INFO!$J18=0,COUNTRY_INFO!$J18=4)),0,COUNTRY_INFO!$F18))","v":172857},229989,{"$f":"IF(AND(INTRO!$E$37=\"Non-endemic\",INTRO!$E$41=\"Non-endemic\"),0,COUNTRY_INFO!P18)","v":0},{"$f":"IF(AND(INTRO!$E$37=\"Non-endemic\",INTRO!$E$41=\"Non-endemic\"),0,COUNTRY_INFO!R18)","v":1},{"$f":"IF(INTRO!$E$39=\"Non-endemic\",IF($G18=1,DEC!I18,0),IF($G18=1,IVM!G18,0))","v":0},"ALB",{"$f":"IF($J18=\"ALB\", IF(INTRO!$E$39=\"Non-endemic\", IF($H18<>0, IF($I18=0, $D18*$H18, $D18*($H18-$G18)), 0), $D18*$H18), 0)","v":57132},172857,null,229989,{"$f":"IF($J18=\"MBD\", IF(INTRO!$E$39=\"Non-endemic\", IF($H18<>0, IF($I18=0, $D18*$H18, $D18*($H18-$G18)), 0), $D18*$H18), 0)","v":0},0,null,0,0,0,0,0,172857,865,null,0,0]
[{"$f":"IF(AND(INTRO!$E$37=\"Non-endemic\",INTRO!$E$41=\"Non-endemic\"),\" \",IF(COUNTRY_INFO!A19=0,\" \",COUNTRY_INFO!A19))","v":"Sierra Leone"},{"$f":"IF(AND(INTRO!$E$37=\"Non-endemic\",INTRO!$E$41=\"Non-endemic\"),\" \",IF(COUNTRY_INFO!B19=0,\" \",COUNTRY_INFO!B19))","v":"NORTHERN"},{"$f":"IF(AND(INTRO!$E$37=\"Non-endemic\",INTRO!$E$41=\"Non-endemic\"),\" \",IF(COUNTRY_INFO!C19=0,\" \",COUNTRY_INFO!C19))","v":"KOINADUGU"},{"$f":"IF(AND(INTRO!$E$37=\"Non-endemic\",INTRO!$E$41=\"Non-endemic\"),0,IF(AND(OR(COUNTRY_INFO!$H19=0,COUNTRY_INFO!$H19=4,COUNTRY_INFO!$H19=99),OR(COUNTRY_INFO!$J19=0,COUNTRY_INFO!$J19=4)),0,COUNTRY_INFO!$E19))","v":45934},{"$f":"IF(AND(INTRO!$E$37=\"Non-endemic\",INTRO!$E$41=\"Non-endemic\"),0,IF(AND(OR(COUNTRY_INFO!$H19=0,COUNTRY_INFO!$H19=4,COUNTRY_INFO!$H19=99),OR(COUNTRY_INFO!$J19=0,COUNTRY_INFO!$J19=4)),0,COUNTRY_INFO!$F19))","v":138978},184912,{"$f":"IF(AND(INTRO!$E$37=\"Non-endemic\",INTRO!$E$41=\"Non-endemic\"),0,COUNTRY_INFO!P19)","v":1},{"$f":"IF(AND(INTRO!$E$37=\"Non-endemic\",INTRO!$E$41=\"Non-endemic\"),0,COUNTRY_INFO!R19)","v":2},{"$f":"IF(INTRO!$E$39=\"Non-endemic\",IF($G19=1,DEC!I19,0),IF($G19=1,IVM!G19,0))","v":460099},"ALB",{"$f":"IF($J19=\"ALB\", IF(INTRO!$E$39=\"Non-endemic\", IF($H19<>0, IF($I19=0, $D19*$H19, $D19*($H19-$G19)), 0), $D19*$H19), 0)","v":91868},138978,null,230846,{"$f":"IF($J19=\"MBD\", IF(INTRO!$E$39=\"Non-endemic\", IF($H19<>0, IF($I19=0, $D19*$H19, $D19*($H19-$G19)), 0), $D19*$H19), 0)","v":0},0,null,0,0,460099,2301,0,138978,695,null,0,0]
[{"$f":"IF(AND(INTRO!$E$37=\"Non-endemic\",INTRO!$E$41=\"Non-endemic\"),\" \",IF(COUNTRY_INFO!A20=0,\" \",COUNTRY_INFO!A20))","v":"Sierra Leone"},{"$f":"IF(AND(INTRO!$E$37=\"Non-endemic\",INTRO!$E$41=\"Non-endemic\"),\" \",IF(COUNTRY_INFO!B20=0,\" \",COUNTRY_INFO!B20))","v":"NORTHERN"},{"$f":"IF(AND(INTRO!$E$37=\"Non-endemic\",INTRO!$E$41=\"Non-endemic\"),\" \",IF(COUNTRY_INFO!C20=0,\" \",COUNTRY_INFO!C20))","v":"KAMBIA "},{"$f":"IF(AND(INTRO!$E$37=\"Non-endemic\",INTRO!$E$41=\"Non-endemic\"),0,IF(AND(OR(COUNTRY_INFO!$H20=0,COUNTRY_INFO!$H20=4,COUNTRY_INFO!$H20=99),OR(COUNTRY_INFO!$J20=0,COUNTRY_INFO!$J20=4)),0,COUNTRY_INFO!$E20))","v":33862},{"$f":"IF(AND(INTRO!$E$37=\"Non-endemic\",INTRO!$E$41=\"Non-endemic\"),0,IF(AND(OR(COUNTRY_INFO!$H20=0,COUNTRY_INFO!$H20=4,COUNTRY_INFO!$H20=99),OR(COUNTRY_INFO!$J20=0,COUNTRY_INFO!$J20=4)),0,COUNTRY_INFO!$F20))","v":102451},136313,{"$f":"IF(AND(INTRO!$E$37=\"Non-endemic\",INTRO!$E$41=\"Non-endemic\"),0,COUNTRY_INFO!P20)","v":0},{"$f":"IF(AND(INTRO!$E$37=\"Non-endemic\",INTRO!$E$41=\"Non-endemic\"),0,COUNTRY_INFO!R20)","v":1},{"$f":"IF(INTRO!$E$39=\"Non-endemic\",IF($G20=1,DEC!I20,0),IF($G20=1,IVM!G20,0))","v":0},"ALB",{"$f":"IF($J20=\"ALB\", IF(INTRO!$E$39=\"Non-endemic\", IF($H20<>0, IF($I20=0, $D20*$H20, $D20*($H20-$G20)), 0), $D20*$H20), 0)","v":33862},102451,null,136313,{"$f":"IF($J20=\"MBD\", IF(INTRO!$E$39=\"Non-endemic\", IF($H20<>0, IF($I20=0, $D20*$H20, $D20*($H20-$G20)), 0), $D20*$H20), 0)","v":0},0,null,0,0,0,0,0,102451,513,null,0,0]
[{"$f":"IF(AND(INTRO!$E$37=\"Non-endemic\",INTRO!$E$41=\"Non-endemic\"),\" \",IF(COUNTRY_INFO!A21=0,\" \",COUNTRY_INFO!A21))","v":"Sierra Leone"},{"$f":"IF(AND(INTRO!$E$37=\"Non-endemic\",INTRO!$E$41=\"Non-endemic\"),\" \",IF(COUNTRY_INFO!B21=0,\" \",COUNTRY_INFO!B21))","v":"WESTERN"},{"$f":"IF(AND(INTRO!$E$37=\"Non-endemic\",INTRO!$E$41=\"Non-endemic\"),\" \",IF(COUNTRY_INFO!C21=0,\" \",COUNTRY_INFO!C21))","v":"WESTERN  RURAL"},{"$f":"IF(AND(INTRO!$E$37=\"Non-endemic\",INTRO!$E$41=\"Non-endemic\"),0,IF(AND(OR(COUNTRY_INFO!$H21=0,COUNTRY_INFO!$H21=4,COUNTRY_INFO!$H21=99),OR(COUNTRY_INFO!$J21=0,COUNTRY_INFO!$J21=4)),0,COUNTRY_INFO!$E21))","v":45454},{"$f":"IF(AND(INTRO!$E$37=\"Non-endemic\",INTRO!$E$41=\"Non-endemic\"),0,IF(AND(OR(COUNTRY_INFO!$H21=0,COUNTRY_INFO!$H21=4,COUNTRY_INFO!$H21=99),OR(COUNTRY_INFO!$J21=0,COUNTRY_INFO!$J21=4)),0,COUNTRY_INFO!$F21))","v":137526},182980,{"$f":"IF(AND(INTRO!$E$37=\"Non-endemic\",INTRO!$E$41=\"Non-endemic\"),0,COUNTRY_INFO!P21)","v":1},{"$f":"IF(AND(INTRO!$E$37=\"Non-endemic\",INTRO!$E$41=\"Non-endemic\"),0,COUNTRY_INFO!R21)","v":1},{"$f":"IF(INTRO!$E$39=\"Non-endemic\",IF($G21=1,DEC!I21,0),IF($G21=1,IVM!G21,0))","v":455293},"ALB",{"$f":"IF($J21=\"ALB\", IF(INTRO!$E$39=\"Non-endemic\", IF($H21<>0, IF($I21=0, $D21*$H21, $D21*($H21-$G21)), 0), $D21*$H21), 0)","v":45454},0,null,45454,{"$f":"IF($J21=\"MBD\", IF(INTRO!$E$39=\"Non-endemic\", IF($H21<>0, IF($I21=0, $D21*$H21, $D21*($H21-$G21)), 0), $D21*$H21), 0)","v":0},0,null,0,0,455293,2277,0,0,0,null,0,0]
[{"$f":"IF(AND(INTRO!$E$37=\"Non-endemic\",INTRO!$E$41=\"Non-endemic\"),\" \",IF(COUNTRY_INFO!A22=0,\" \",COUNTRY_INFO!A22))","v":"Sierra Leone"},{"$f":"IF(AND(INTRO!$E$37=\"Non-endemic\",INTRO!$E$41=\"Non-endemic\"),\" \",IF(COUNTRY_INFO!B22=0,\" \",COUNTRY_INFO!B22))","v":"WESTERN"},{"$f":"IF(AND(INTRO!$E$37=\"Non-endemic\",INTRO!$E$41=\"Non-endemic\"),\" \",IF(COUNTRY_INFO!C22=0,\" \",COUNTRY_INFO!C22))","v":"WESTERN  URBAN "},{"$f":"IF(AND(INTRO!$E$37=\"Non-endemic\",INTRO!$E$41=\"Non-endemic\"),0,IF(AND(OR(COUNTRY_INFO!$H22=0,COUNTRY_INFO!$H22=4,COUNTRY_INFO!$H22=99),OR(COUNTRY_INFO!$J22=0,COUNTRY_INFO!$J22=4)),0,COUNTRY_INFO!$E22))","v":136323},{"$f":"IF(AND(INTRO!$E$37=\"Non-endemic\",INTRO!$E$41=\"Non-endemic\"),0,IF(AND(OR(COUNTRY_INFO!$H22=0,COUNTRY_INFO!$H22=4,COUNTRY_INFO!$H22=99),OR(COUNTRY_INFO!$J22=0,COUNTRY_INFO!$J22=4)),0,COUNTRY_INFO!$F22))","v":412458},548781,{"$f":"IF(AND(INTRO!$E$37=\"Non-endemic\",INTRO!$E$41=\"Non-endemic\"),0,COUNTRY_INFO!P22)","v":0},{"$f":"IF(AND(INTRO!$E$37=\"Non-endemic\",INTRO!$E$41=\"Non-endemic\"),0,COUNTRY_INFO!R22)","v":1},{"$f":"IF(INTRO!$E$39=\"Non-endemic\",IF($G22=1,DEC!I22,0),IF($G22=1,IVM!G22,0))","v":0},"ALB",{"$f":"IF($J22=\"ALB\", IF(INTRO!$E$39=\"Non-endemic\", IF($H22<>0, IF($I22=0, $D22*$H22, $D22*($H22-$G22)), 0), $D22*$H22), 0)","v":136323},412458,null,548781,{"$f":"IF($J22=\"MBD\", IF(INTRO!$E$39=\"Non-endemic\", IF($H22<>0, IF($I22=0, $D22*$H22, $D22*($H22-$G22)), 0), $D22*$H22), 0)","v":0},0,null,0,0,0,0,0,412458,2063,null,0,0]

{"sheet":"PZQ","index":4,"n_rows":22,"n_cols":18,"rows_kept":22,"cut":false,"hidden":false,"merged":[[6,16,7,16],[6,4,7,4],[6,5,7,5],[6,7,7,7],[6,0,7,0],[6,1,7,1],[6,2,7,2],[6,3,7,3],[5,12,5,17],[6,6,7,6],[6,8,7,8],[6,9,7,9],[3,0,3,2],[5,0,5,2],[5,3,5,5],[5,8,5,11],[5,6,5,7],[6,10,7,10],[6,17,7,17],[6,13,7,13],[6,14,7,14],[6,15,7,15],[6,11,7,11],[6,12,7,12]]}
["Praziquantel (PZQ)"]
["Administrative structure, eligible population by age group, treatment plan and information about tablets"]
[]
["TOTAL",null,null,{"$f":"SUM(D$9:D$1000)","v":1307018.3700000001},{"$f":"SUM(E$9:E$1000)","v":1834366.4},{"$f":"SUM(F$9:F$1000)","v":3141384.77},null,null,{"$f":"SUM(I$9:I$1000)","v":871309.5},0,1563882,2435191.5,2178273.75,4691646,2178273.75,0,2178273.75,2182]
[]
["Country administrative structure",null,null,"Population requiring treatment with PZQ",null,null,"Treatment plan",null,"Target population",null,null,null,"Praziquantel (PZQ)"]
["Country","Province/State","District","SAC","Adults","Total","SCH","All SAC targeted?","SAC","SAC\nat lower level","Adults","Total","SAC","Adults","Total required\nfor SAC","Remaining in stock","Tablets to be procured","Bottle (600 mg)\n1000 tablets"]
[]
[{"$f":"IF(INTRO!$E$43=\"Non-endemic\",\" \", IF(COUNTRY_INFO!A9=0,\" \",COUNTRY_INFO!A9))","v":"Sierra Leone"},{"$f":"IF(INTRO!$E$43=\"Non-endemic\",\" \", IF(COUNTRY_INFO!B9=0,\" \",COUNTRY_INFO!B9))","v":"SOUHTERN"},{"$f":"IF(INTRO!$E$43=\"Non-endemic\",\" \", IF(COUNTRY_INFO!C9=0,\" \",COUNTRY_INFO!C9))","v":"BO"},{"$f":"IF(INTRO!$E$43=\"Non-endemic\", 0, IF(COUNTRY_INFO!$K9>0, IF(COUNTRY_INFO!$K9=4, 0, IF(COUNTRY_INFO!$K9=1, COUNTRY_INFO!$F9*0.33, IF(COUNTRY_INFO!$K9=2, COUNTRY_INFO!$F9*0.5, COUNTRY_INFO!$F9))), 0))","v":80693},{"$f":"IF(INTRO!$E$43=\"Non-endemic\", 0, IF(COUNTRY_INFO!$K9>0, IF(COUNTRY_INFO!$K9=4, 0, IF(COUNTRY_INFO!$K9=1, 0, IF(COUNTRY_INFO!$K9=2, COUNTRY_INFO!$G9*0.2, COUNTRY_INFO!$G9))), 0))","v":74579.199999999997},{"$f":"SUM(D9:E9)","v":155272.20000000001},{"$f":"IF(INTRO!$E$43=\"Non-endemic\", \"Not required\", COUNTRY_INFO!S9)","v":1},null,{"$f":"IF($D9=0,0,IF(AND($G9>0,$H9<>\"Yes\"),D9,IF(AND($G9>0,$H9=\"Yes\"),COUNTRY_INFO!$F9,0)))","v":80693},null,{"$f":"IF($G9>0,E9, 0)","v":74579.199999999997},{"$f":"IF($J9=0,SUM(I9,K9),SUM(J9,K9))","v":155272.20000000001},{"$f":"IF($J9=0,$I9*2.5,$J9*2.5)","v":201732.5},{"$f":"$K9*3","v":223737.59999999998},{"$f":"M9","v":201732.5},0,{"$f":"IF($O9>$P9,O9-P9,0)","v":201732.5},{"$f":"ROUNDUP($O9/1000,0)","v":202}]
[{"$f":"IF(INTRO!$E$43=\"Non-endemic\",\" \", IF(COUNTRY_INFO!A10=0,\" \",COUNTRY_INFO!A10))","v":"Sierra Leone"},{"$f":"IF(INTRO!$E$43=\"Non-endemic\",\" \", IF(COUNTRY_INFO!B10=0,\" \",COUNTRY_INFO!B10))","v":"SOUHTERN"},{"$f":"IF(INTRO!$E$43=\"Non-endemic\",\" \", IF(COUNTRY_INFO!C10=0,\" \",COUNTRY_INFO!C10))","v":"MOYAMBA "},{"$f":"IF(INTRO!$E$43=\"Non-endemic\", 0, IF(COUNTRY_INFO!$K10>0, IF(COUNTRY_INFO!$K10=4, 0, IF(COUNTRY_INFO!$K10=1, COUNTRY_INFO!$F10*0.33, IF(COUNTRY_INFO!$K10=2, COUNTRY_INFO!$F10*0.5, COUNTRY_INFO!$F10))), 0))","v":32108.34},{"$f":"IF(INTRO!$E$43=\"Non-endemic\", 0, IF(COUNTRY_INFO!$K10>0, IF(COUNTRY_INFO!$K10=4, 0, IF(COUNTRY_INFO!$K10=1, 0, IF(COUNTRY_INFO!$K10=2, COUNTRY_INFO!$G10*0.2, COUNTRY_INFO!$G10))), 0))","v":0},32108.34,{"$f":"IF(INTRO!$E$43=\"Non-endemic\", \"Not required\", COUNTRY_INFO!S10)","v":0},null,{"$f":"IF($D10=0,0,IF(AND($G10>0,$H10<>\"Yes\"),D10,IF(AND($G10>0,$H10=\"Yes\"),COUNTRY_INFO!$F10,0)))","v":0},null,0,0,0,0,0,0,0,0]
[{"$f":"IF(INTRO!$E$43=\"Non-endemic\",\" \", IF(COUNTRY_INFO!A11=0,\" \",COUNTRY_INFO!A11))","v":"Sierra Leone"},{"$f":"IF(INTRO!$E$43=\"Non-endemic\",\" \", IF(COUNTRY_INFO!B11=0,\" \",COUNTRY_INFO!B11))","v":"SOUHTERN"},{"$f":"IF(INTRO!$E$43=\"Non-endemic\",\" \", IF(COUNTRY_INFO!C11=0,\" \",COUNTRY_INFO!C11))","v":"PUJEHUN "},{"$f":"IF(INTRO!$E$43=\"Non-endemic\", 0, IF(COUNTRY_INFO!$K11>0, IF(COUNTRY_INFO!$K11=4, 0, IF(COUNTRY_INFO!$K11=1, COUNTRY_INFO!$F11*0.33, IF(COUNTRY_INFO!$K11=2, COUNTRY_INFO!$F11*0.5, COUNTRY_INFO!$F11))), 0))","v":31750.620000000003},{"$f":"IF(INTRO!$E$43=\"Non-endemic\", 0, IF(COUNTRY_INFO!$K11>0, IF(COUNTRY_INFO!$K11=4, 0, IF(COUNTRY_INFO!$K11=1, 0, IF(COUNTRY_INFO!$K11=2, COUNTRY_INFO!$G11*0.2, COUNTRY_INFO!$G11))), 0))","v":0},31750.620000000003,{"$f":"IF(INTRO!$E$43=\"Non-endemic\", \"Not required\", COUNTRY_INFO!S11)","v":0},null,{"$f":"IF($D11=0,0,IF(AND($G11>0,$H11<>\"Yes\"),D11,IF(AND($G11>0,$H11=\"Yes\"),COUNTRY_INFO!$F11,0)))","v":0},null,0,0,0,0,0,0,0,0]
[{"$f":"IF(INTRO!$E$43=\"Non-endemic\",\" \", IF(COUNTRY_INFO!A12=0,\" \",COUNTRY_INFO!A12))","v":"Sierra Leone"},{"$f":"IF(INTRO!$E$43=\"Non-endemic\",\" \", IF(COUNTRY_INFO!B12=0,\" \",COUNTRY_INFO!B12))","v":"SOUHTERN"},{"$f":"IF(INTRO!$E$43=\"Non-endemic\",\" \", IF(COUNTRY_INFO!C12=0,\" \",COUNTRY_INFO!C12))","v":"BONTHE "},{"$f":"IF(INTRO!$E$43=\"Non-endemic\", 0, IF(COUNTRY_INFO!$K12>0, IF(COUNTRY_INFO!$K12=4, 0, IF(COUNTRY_INFO!$K12=1, COUNTRY_INFO!$F12*0.33, IF(COUNTRY_INFO!$K12=2, COUNTRY_INFO!$F12*0.5, COUNTRY_INFO!$F12))), 0))","v":0},{"$f":"IF(INTRO!$E$43=\"Non-endemic\", 0, IF(COUNTRY_INFO!$K12>0, IF(COUNTRY_INFO!$K12=4, 0, IF(COUNTRY_INFO!$K12=1, 0, IF(COUNTRY_INFO!$K12=2, COUNTRY_INFO!$G12*0.2, COUNTRY_INFO!$G12))), 0))","v":0},0,{"$f":"IF(INTRO!$E$43=\"Non-endemic\", \"Not required\", COUNTRY_INFO!S12)","v":0},null,{"$f":"IF($D12=0,0,IF(AND($G12>0,$H12<>\"Yes\"),D12,IF(AND($G12>0,$H12=\"Yes\"),COUNTRY_INFO!$F12,0)))","v":0},null,0,0,0,0,0,0,0,0]
[{"$f":"IF(INTRO!$E$43=\"Non-endemic\",\" \", IF(COUNTRY_INFO!A13=0,\" \",COUNTRY_INFO!A13))","v":"Sierra Leone"},{"$f":"IF(INTRO!$E$43=\"Non-endemic\",\" \", IF(COUNTRY_INFO!B13=0,\" \",COUNTRY_INFO!B13))","v":"EASTERN"},{"$f":"IF(INTRO!$E$43=\"Non-endemic\",\" \", IF(COUNTRY_INFO!C13=0,\" \",COUNTRY_INFO!C13))","v":"KENEMA"},{"$f":"IF(INTRO!$E$43=\"Non-endemic\", 0, IF(COUNTRY_INFO!$K13>0, IF(COUNTRY_INFO!$K13=4, 0, IF(COUNTRY_INFO!$K13=1, COUNTRY_INFO!$F13*0.33, IF(COUNTRY_INFO!$K13=2, COUNTRY_INFO!$F13*0.5, COUNTRY_INFO!$F13))), 0))","v":212401},{"$f":"IF(INTRO!$E$43=\"Non-endemic\", 0, IF(COUNTRY_INFO!$K13>0, IF(COUNTRY_INFO!$K13=4, 0, IF(COUNTRY_INFO!$K13=1, 0, IF(COUNTRY_INFO!$K13=2, COUNTRY_INFO!$G13*0.2, COUNTRY_INFO!$G13))), 0))","v":490770},703171,{"$f":"IF(INTRO!$E$43=\"Non-endemic\", \"Not required\", COUNTRY_INFO!S13)","v":1},null,{"$f":"IF($D13=0,0,IF(AND($G13>0,$H13<>\"Yes\"),D13,IF(AND($G13>0,$H13=\"Yes\"),COUNTRY_INFO!$F13,0)))","v":212401},null,490770,703171,531002.5,1472310,531002.5,0,531002.5,532]
[{"$f":"IF(INTRO!$E$43=\"Non-endemic\",\" \", IF(COUNTRY_INFO!A14=0,\" \",COUNTRY_INFO!A14))","v":"Sierra Leone"},{"$f":"IF(INTRO!$E$43=\"Non-endemic\",\" \", IF(COUNTRY_INFO!B14=0,\" \",COUNTRY_INFO!B14))","v":"EASTERN"},{"$f":"IF(INTRO!$E$43=\"Non-endemic\",\" \", IF(COUNTRY_INFO!C14=0,\" \",COUNTRY_INFO!C14))","v":"KONO"},{"$f":"IF(INTRO!$E$43=\"Non-endemic\", 0, IF(COUNTRY_INFO!$K14>0, IF(COUNTRY_INFO!$K14=4, 0, IF(COUNTRY_INFO!$K14=1, COUNTRY_INFO!$F14*0.33, IF(COUNTRY_INFO!$K14=2, COUNTRY_INFO!$F14*0.5, COUNTRY_INFO!$F14))), 0))","v":79317},{"$f":"IF(INTRO!$E$43=\"Non-endemic\", 0, IF(COUNTRY_INFO!$K14>0, IF(COUNTRY_INFO!$K14=4, 0, IF(COUNTRY_INFO!$K14=1, 0, IF(COUNTRY_INFO!$K14=2, COUNTRY_INFO!$G14*0.2, COUNTRY_INFO!$G14))), 0))","v":73307.400000000009},152624.40000000002,{"$f":"IF(INTRO!$E$43=\"Non-endemic\", \"Not required\", COUNTRY_INFO!S14)","v":1},null,{"$f":"IF($D14=0,0,IF(AND($G14>0,$H14<>\"Yes\"),D14,IF(AND($G14>0,$H14=\"Yes\"),COUNTRY_INFO!$F14,0)))","v":79317},null,73307.400000000009,152624.40000000002,198292.5,219922.2,198292.5,0,198292.5,199]
[{"$f":"IF(INTRO!$E$43=\"Non-endemic\",\" \", IF(COUNTRY_INFO!A15=0,\" \",COUNTRY_INFO!A15))","v":"Sierra Leone"},{"$f":"IF(INTRO!$E$43=\"Non-endemic\",\" \", IF(COUNTRY_INFO!B15=0,\" \",COUNTRY_INFO!B15))","v":"EASTERN"},{"$f":"IF(INTRO!$E$43=\"Non-endemic\",\" \", IF(COUNTRY_INFO!C15=0,\" \",COUNTRY_INFO!C15))","v":"KAILAHUN "},{"$f":"IF(INTRO!$E$43=\"Non-endemic\", 0, IF(COUNTRY_INFO!$K15>0, IF(COUNTRY_INFO!$K15=4, 0, IF(COUNTRY_INFO!$K15=1, COUNTRY_INFO!$F15*0.33, IF(COUNTRY_INFO!$K15=2, COUNTRY_INFO!$F15*0.5, COUNTRY_INFO!$F15))), 0))","v":195804},{"$f":"IF(INTRO!$E$43=\"Non-endemic\", 0, IF(COUNTRY_INFO!$K15>0, IF(COUNTRY_INFO!$K15=4, 0, IF(COUNTRY_INFO!$K15=1, 0, IF(COUNTRY_INFO!$K15=2, COUNTRY_INFO!$G15*0.2, COUNTRY_INFO!$G15))), 0))","v":452422},648226,{"$f":"IF(INTRO!$E$43=\"Non-endemic\", \"Not required\", COUNTRY_INFO!S15)","v":1},null,{"$f":"IF($D15=0,0,IF(AND($G15>0,$H15<>\"Yes\"),D15,IF(AND($G15>0,$H15=\"Yes\"),COUNTRY_INFO!$F15,0)))","v":195804},null,452422,648226,489510,1357266,489510,0,489510,490]
[{"$f":"IF(INTRO!$E$43=\"Non-endemic\",\" \", IF(COUNTRY_INFO!A16=0,\" \",COUNTRY_INFO!A16))","v":"Sierra Leone"},{"$f":"IF(INTRO!$E$43=\"Non-endemic\",\" \", IF(COUNTRY_INFO!B16=0,\" \",COUNTRY_INFO!B16))","v":"NORTHERN"},{"$f":"IF(INTRO!$E$43=\"Non-endemic\",\" \", IF(COUNTRY_INFO!C16=0,\" \",COUNTRY_INFO!C16))","v":"BOMBALI"},{"$f":"IF(INTRO!$E$43=\"Non-endemic\", 0, IF(COUNTRY_INFO!$K16>0, IF(COUNTRY_INFO!$K16=4, 0, IF(COUNTRY_INFO!$K16=1, COUNTRY_INFO!$F16*0.33, IF(COUNTRY_INFO!$K16=2, COUNTRY_INFO!$F16*0.5, COUNTRY_INFO!$F16))), 0))","v":89395.5},{"$f":"IF(INTRO!$E$43=\"Non-endemic\", 0, IF(COUNTRY_INFO!$K16>0, IF(COUNTRY_INFO!$K16=4, 0, IF(COUNTRY_INFO!$K16=1, 0, IF(COUNTRY_INFO!$K16=2, COUNTRY_INFO!$G16*0.2, COUNTRY_INFO!$G16))), 0))","v":82622.400000000009},172017.90000000002,{"$f":"IF(INTRO!$E$43=\"Non-endemic\", \"Not required\", COUNTRY_INFO!S16)","v":1},null,{"$f":"IF($D16=0,0,IF(AND($G16>0,$H16<>\"Yes\"),D16,IF(AND($G16>0,$H16=\"Yes\"),COUNTRY_INFO!$F16,0)))","v":89395.5},null,82622.400000000009,172017.90000000002,223488.75,247867.2,223488.75,0,223488.75,224]
[{"$f":"IF(INTRO!$E$43=\"Non-endemic\",\" \", IF(COUNTRY_INFO!A17=0,\" \",COUNTRY_INFO!A17))","v":"Sierra Leone"},{"$f":"IF(INTRO!$E$43=\"Non-endemic\",\" \", IF(COUNTRY_INFO!B17=0,\" \",COUNTRY_INFO!B17))","v":"NORTHERN"},{"$f":"IF(INTRO!$E$43=\"Non-endemic\",\" \", IF(COUNTRY_INFO!C17=0,\" \",COUNTRY_INFO!C17))","v":"TONKOLILI"},{"$f":"IF(INTRO!$E$43=\"Non-endemic\", 0, IF(COUNTRY_INFO!$K17>0, IF(COUNTRY_INFO!$K17=4, 0, IF(COUNTRY_INFO!$K17=1, COUNTRY_INFO!$F17*0.33, IF(COUNTRY_INFO!$K17=2, COUNTRY_INFO!$F17*0.5, COUNTRY_INFO!$F17))), 0))","v":74721},{"$f":"IF(INTRO!$E$43=\"Non-endemic\", 0, IF(COUNTRY_INFO!$K17>0, IF(COUNTRY_INFO!$K17=4, 0, IF(COUNTRY_INFO!$K17=1, 0, IF(COUNTRY_INFO!$K17=2, COUNTRY_INFO!$G17*0.2, COUNTRY_INFO!$G17))), 0))","v":69060},143781,{"$f":"IF(INTRO!$E$43=\"Non-endemic\", \"Not required\", COUNTRY_INFO!S17)","v":1},null,{"$f":"IF($D17=0,0,IF(AND($G17>0,$H17<>\"Yes\"),D17,IF(AND($G17>0,$H17=\"Yes\"),COUNTRY_INFO!$F17,0)))","v":74721},null,69060,143781,186802.5,207180,186802.5,0,186802.5,187]
[{"$f":"IF(INTRO!$E$43=\"Non-endemic\",\" \", IF(COUNTRY_INFO!A18=0,\" \",COUNTRY_INFO!A18))","v":"Sierra Leone"},{"$f":"IF(INTRO!$E$43=\"Non-endemic\",\" \", IF(COUNTRY_INFO!B18=0,\" \",COUNTRY_INFO!B18))","v":"NORTHERN"},{"$f":"IF(INTRO!$E$43=\"Non-endemic\",\" \", IF(COUNTRY_INFO!C18=0,\" \",COUNTRY_INFO!C18))","v":"PORT LOKO"},{"$f":"IF(INTRO!$E$43=\"Non-endemic\", 0, IF(COUNTRY_INFO!$K18>0, IF(COUNTRY_INFO!$K18=4, 0, IF(COUNTRY_INFO!$K18=1, COUNTRY_INFO!$F18*0.33, IF(COUNTRY_INFO!$K18=2, COUNTRY_INFO!$F18*0.5, COUNTRY_INFO!$F18))), 0))","v":86428.5},{"$f":"IF(INTRO!$E$43=\"Non-endemic\", 0, IF(COUNTRY_INFO!$K18>0, IF(COUNTRY_INFO!$K18=4, 0, IF(COUNTRY_INFO!$K18=1, 0, IF(COUNTRY_INFO!$K18=2, COUNTRY_INFO!$G18*0.2, COUNTRY_INFO!$G18))), 0))","v":79880.400000000009},166308.90000000002,{"$f":"IF(INTRO!$E$43=\"Non-endemic\", \"Not required\", COUNTRY_INFO!S18)","v":0},null,{"$f":"IF($D18=0,0,IF(AND($G18>0,$H18<>\"Yes\"),D18,IF(AND($G18>0,$H18=\"Yes\"),COUNTRY_INFO!$F18,0)))","v":0},null,0,0,0,0,0,0,0,0]
[{"$f":"IF(INTRO!$E$43=\"Non-endemic\",\" \", IF(COUNTRY_INFO!A19=0,\" \",COUNTRY_INFO!A19))","v":"Sierra Leone"},{"$f":"IF(INTRO!$E$43=\"Non-endemic\",\" \", IF(COUNTRY_INFO!B19=0,\" \",COUNTRY_INFO!B19))","v":"NORTHERN"},{"$f":"IF(INTRO!$E$43=\"Non-endemic\",\" \", IF(COUNTRY_INFO!C19=0,\" \",COUNTRY_INFO!C19))","v":"KOINADUGU"},{"$f":"IF(INTRO!$E$43=\"Non-endemic\", 0, IF(COUNTRY_INFO!$K19>0, IF(COUNTRY_INFO!$K19=4, 0, IF(COUNTRY_INFO!$K19=1, COUNTRY_INFO!$F19*0.33, IF(COUNTRY_INFO!$K19=2, COUNTRY_INFO!$F19*0.5, COUNTRY_INFO!$F19))), 0))","v":138978},{"$f":"IF(INTRO!$E$43=\"Non-endemic\", 0, IF(COUNTRY_INFO!$K19>0, IF(COUNTRY_INFO!$K19=4, 0, IF(COUNTRY_INFO!$K19=1, 0, IF(COUNTRY_INFO!$K19=2, COUNTRY_INFO!$G19*0.2, COUNTRY_INFO!$G19))), 0))","v":321121},460099,{"$f":"IF(INTRO!$E$43=\"Non-endemic\", \"Not required\", COUNTRY_INFO!S19)","v":1},null,{"$f":"IF($D19=0,0,IF(AND($G19>0,$H19<>\"Yes\"),D19,IF(AND($G19>0,$H19=\"Yes\"),COUNTRY_INFO!$F19,0)))","v":138978},null,321121,460099,347445,963363,347445,0,347445,348]
[{"$f":"IF(INTRO!$E$43=\"Non-endemic\",\" \", IF(COUNTRY_INFO!A20=0,\" \",COUNTRY_INFO!A20))","v":"Sierra Leone"},{"$f":"IF(INTRO!$E$43=\"Non-endemic\",\" \", IF(COUNTRY_INFO!B20=0,\" \",COUNTRY_INFO!B20))","v":"NORTHERN"},{"$f":"IF(INTRO!$E$43=\"Non-endemic\",\" \", IF(COUNTRY_INFO!C20=0,\" \",COUNTRY_INFO!C20))","v":"KAMBIA "},{"$f":"IF(INTRO!$E$43=\"Non-endemic\", 0, IF(COUNTRY_INFO!$K20>0, IF(COUNTRY_INFO!$K20=4, 0, IF(COUNTRY_INFO!$K20=1, COUNTRY_INFO!$F20*0.33, IF(COUNTRY_INFO!$K20=2, COUNTRY_INFO!$F20*0.5, COUNTRY_INFO!$F20))), 0))","v":33808.83},{"$f":"IF(INTRO!$E$43=\"Non-endemic\", 0, IF(COUNTRY_INFO!$K20>0, IF(COUNTRY_INFO!$K20=4, 0, IF(COUNTRY_INFO!$K20=1, 0, IF(COUNTRY_INFO!$K20=2, COUNTRY_INFO!$G20*0.2, COUNTRY_INFO!$G20))), 0))","v":0},33808.83,{"$f":"IF(INTRO!$E$43=\"Non-endemic\", \"Not required\", COUNTRY_INFO!S20)","v":0},null,{"$f":"IF($D20=0,0,IF(AND($G20>0,$H20<>\"Yes\"),D20,IF(AND($G20>0,$H20=\"Yes\"),COUNTRY_INFO!$F20,0)))","v":0},null,0,0,0,0,0,0,0,0]
[{"$f":"IF(INTRO!$E$43=\"Non-endemic\",\" \", IF(COUNTRY_INFO!A21=0,\" \",COUNTRY_INFO!A21))","v":"Sierra Leone"},{"$f":"IF(INTRO!$E$43=\"Non-endemic\",\" \", IF(COUNTRY_INFO!B21=0,\" \",COUNTRY_INFO!B21))","v":"WESTERN"},{"$f":"IF(INTRO!$E$43=\"Non-endemic\",\" \", IF(COUNTRY_INFO!C21=0,\" \",COUNTRY_INFO!C21))","v":"WESTERN  RURAL"},{"$f":"IF(INTRO!$E$43=\"Non-endemic\", 0, IF(COUNTRY_INFO!$K21>0, IF(COUNTRY_INFO!$K21=4, 0, IF(COUNTRY_INFO!$K21=1, COUNTRY_INFO!$F21*0.33, IF(COUNTRY_INFO!$K21=2, COUNTRY_INFO!$F21*0.5, COUNTRY_INFO!$F21))), 0))","v":45383.58},{"$f":"IF(INTRO!$E$43=\"Non-endemic\", 0, IF(COUNTRY_INFO!$K21>0, IF(COUNTRY_INFO!$K21=4, 0, IF(COUNTRY_INFO!$K21=1, 0, IF(COUNTRY_INFO!$K21=2, COUNTRY_INFO!$G21*0.2, COUNTRY_INFO!$G21))), 0))","v":0},45383.58,{"$f":"IF(INTRO!$E$43=\"Non-endemic\", \"Not required\", COUNTRY_INFO!S21)","v":0},null,{"$f":"IF($D21=0,0,IF(AND($G21>0,$H21<>\"Yes\"),D21,IF(AND($G21>0,$H21=\"Yes\"),COUNTRY_INFO!$F21,0)))","v":0},null,0,0,0,0,0,0,0,0]
[{"$f":"IF(INTRO!$E$43=\"Non-endemic\",\" \", IF(COUNTRY_INFO!A22=0,\" \",COUNTRY_INFO!A22))","v":"Sierra Leone"},{"$f":"IF(INTRO!$E$43=\"Non-endemic\",\" \", IF(COUNTRY_INFO!B22=0,\" \",COUNTRY_INFO!B22))","v":"WESTERN"},{"$f":"IF(INTRO!$E$43=\"Non-endemic\",\" \", IF(COUNTRY_INFO!C22=0,\" \",COUNTRY_INFO!C22))","v":"WESTERN  URBAN "},{"$f":"IF(INTRO!$E$43=\"Non-endemic\", 0, IF(COUNTRY_INFO!$K22>0, IF(COUNTRY_INFO!$K22=4, 0, IF(COUNTRY_INFO!$K22=1, COUNTRY_INFO!$F22*0.33, IF(COUNTRY_INFO!$K22=2, COUNTRY_INFO!$F22*0.5, COUNTRY_INFO!$F22))), 0))","v":206229},{"$f":"IF(INTRO!$E$43=\"Non-endemic\", 0, IF(COUNTRY_INFO!$K22>0, IF(COUNTRY_INFO!$K22=4, 0, IF(COUNTRY_INFO!$K22=1, 0, IF(COUNTRY_INFO!$K22=2, COUNTRY_INFO!$G22*0.2, COUNTRY_INFO!$G22))), 0))","v":190604},396833,{"$f":"IF(INTRO!$E$43=\"Non-endemic\", \"Not required\", COUNTRY_INFO!S22)","v":0},null,{"$f":"IF($D22=0,0,IF(AND($G22>0,$H22<>\"Yes\"),D22,IF(AND($G22>0,$H22=\"Yes\"),COUNTRY_INFO!$F22,0)))","v":0},null,0,0,0,0,0,0,0,0]

{"sheet":"IVM","index":5,"n_rows":22,"n_cols":17,"rows_kept":22,"cut":false,"hidden":false,"merged":[[3,0,3,2],[3,4,3,5],[6,4,7,4],[6,5,7,5],[5,10,5,16],[6,0,7,0],[6,1,7,1],[6,2,7,2],[6,7,6,9],[5,0,5,2],[5,4,5,5],[5,6,5,9],[6,14,7,14],[5,3,7,3],[6,15,7,15],[6,16,7,16],[6,10,7,10],[6,11,7,11],[6,12,7,12],[6,13,7,13]]}
["Ivermectin (IVM)"]
["Administrative structure, eligible population by age group, treatment plan and information about tablets"]
[]
["TOTAL",null,null,{"$f":"SUM(D$9:D$1000)","v":6143624},null,null,{"$f":"SUM(G$9:G$1000)","v":2858692},5688331,0,5688331,1274820.3999999999,9197809.5999999996,6729517.2000000002,17202147.199999996,0,17202147.199999996,34409]
[]
["Country administrative structure",null,null,"Population requiring treatment with IVM","Treatment plan",null,"Target population",null,null,null,"Ivermectin (IVM)"]
["Country","Province/State","District",null,"LF","Oncho","LF","Oncho",null,null,"LF only","Oncho only","LF+Oncho","Total required","Remaining in stock","Tablets to be procured","Bottles (3mg)\n500 tablets"]
[null,null,null,null,null,null,null,"in the district","in villages","total"]
[{"$f":"IF(INTRO!$E$39=\"Non-endemic\",\" \",IF(COUNTRY_INFO!A9=0,\" \",COUNTRY_INFO!A9))","v":"Sierra Leone"},{"$f":"IF(INTRO!$E$39=\"Non-endemic\",\" \",IF(COUNTRY_INFO!B9=0,\" \",COUNTRY_INFO!B9))","v":"SOUHTERN"},{"$f":"IF(INTRO!$E$39=\"Non-endemic\",\" \",IF(COUNTRY_INFO!C9=0,\" \",COUNTRY_INFO!C9))","v":"BO"},{"$f":"IF(INTRO!$E$39=\"Non-endemic\",0,IF(INTRO!$E$39=\"Endemic but PC is not required\",IF(COUNTRY_INFO!$H9=1,COUNTRY_INFO!F9+COUNTRY_INFO!G9,0),IF(COUNTRY_INFO!$H9=1,COUNTRY_INFO!F9+COUNTRY_INFO!G9,IF(COUNTRY_INFO!$I9=1,IF(COUNTRY_INFO!M9>=(COUNTRY_INFO!F9+COUNTRY_INFO!G9),COUNTRY_INFO!F9+COUNTRY_INFO!G9,COUNTRY_INFO!$M9),0))))","v":534282},{"$f":"IF(AND(INTRO!$E$39=\"Non-endemic\",INTRO!$E$37=\"Non-endemic\"),\"Not required\",IF(INTRO!$E$39=\"Non-endemic\",\"Treat with DEC\",COUNTRY_INFO!P9))","v":0},{"$f":"IF(INTRO!$E$39<>\"Non-endemic\",COUNTRY_INFO!Q9,\"Not required\")","v":1},{"$f":"IF(COUNTRY_INFO!H9=1, IF($E9=1,$D9, 0),0)","v":0},{"$f":"IF(INTRO!$E$39<>\"Endemic\",0, IF(AND(COUNTRY_INFO!$I9=1,$F9<>0),IF(COUNTRY_INFO!M9>=(COUNTRY_INFO!F9+COUNTRY_INFO!G9),COUNTRY_INFO!F9+COUNTRY_INFO!G9,COUNTRY_INFO!$M9), 0))","v":534282},null,{"$f":"IF(I9=0,H9,IF(I9>H9,H9,I9))","v":534282},{"$f":"IF(G9<J9,0,IF($E9=1, (G9-J9)*2.8, 0))","v":0},{"$f":"IF($E9<$F9, J9*(F9-E9)*2.8, 0)","v":1495989.5999999999},{"$f":"IF(AND($E9=1, $F9<>0), J9*2.8, 0)","v":0},{"$f":"SUM(K9:M9)","v":1495989.5999999999},null,{"$f":"IF($N9>$O9,$N9-$O9,0)","v":1495989.5999999999},{"$f":"ROUNDUP($N9/500,0)","v":2992}]
[{"$f":"IF(INTRO!$E$39=\"Non-endemic\",\" \",IF(COUNTRY_INFO!A10=0,\" \",COUNTRY_INFO!A10))","v":"Sierra Leone"},{"$f":"IF(INTRO!$E$39=\"Non-endemic\",\" \",IF(COUNTRY_INFO!B10=0,\" \",COUNTRY_INFO!B10))","v":"SOUHTERN"},{"$f":"IF(INTRO!$E$39=\"Non-endemic\",\" \",IF(COUNTRY_INFO!C10=0,\" \",COUNTRY_INFO!C10))","v":"MOYAMBA "},{"$f":"IF(INTRO!$E$39=\"Non-endemic\",0,IF(INTRO!$E$39=\"Endemic but PC is not required\",IF(COUNTRY_INFO!$H10=1,COUNTRY_INFO!F10+COUNTRY_INFO!G10,0),IF(COUNTRY_INFO!$H10=1,COUNTRY_INFO!F10+COUNTRY_INFO!G10,IF(COUNTRY_INFO!$I10=1,IF(COUNTRY_INFO!M10>=(COUNTRY_INFO!F10+COUNTRY_INFO!G10),COUNTRY_INFO!F10+COUNTRY_INFO!G10,COUNTRY_INFO!$M10),0))))","v":322113},{"$f":"IF(AND(INTRO!$E$39=\"Non-endemic\",INTRO!$E$37=\"Non-endemic\"),\"Not required\",IF(INTRO!$E$39=\"Non-endemic\",\"Treat with DEC\",COUNTRY_INFO!P10))","v":0},{"$f":"IF(INTRO!$E$39<>\"Non-endemic\",COUNTRY_INFO!Q10,\"Not required\")","v":1},{"$f":"IF(COUNTRY_INFO!H10=1, IF($E10=1,$D10, 0),0)","v":0},{"$f":"IF(INTRO!$E$39<>\"Endemic\",0, IF(AND(COUNTRY_INFO!$I10=1,$F10<>0),IF(COUNTRY_INFO!M10>=(COUNTRY_INFO!F10+COUNTRY_INFO!G10),COUNTRY_INFO!F10+COUNTRY_INFO!G10,COUNTRY_INFO!$M10), 0))","v":322113},null,322113,0,901916.39999999991,0,901916.39999999991,0,901916.39999999991,1804]
[{"$f":"IF(INTRO!$E$39=\"Non-endemic\",\" \",IF(COUNTRY_INFO!A11=0,\" \",COUNTRY_INFO!A11))","v":"Sierra Leone"},{"$f":"IF(INTRO!$E$39=\"Non-endemic\",\" \",IF(COUNTRY_INFO!B11=0,\" \",COUNTRY_INFO!B11))","v":"SOUHTERN"},{"$f":"IF(INTRO!$E$39=\"Non-endemic\",\" \",IF(COUNTRY_INFO!C11=0,\" \",COUNTRY_INFO!C11))","v":"PUJEHUN "},{"$f":"IF(INTRO!$E$39=\"Non-endemic\",0,IF(INTRO!$E$39=\"Endemic but PC is not required\",IF(COUNTRY_INFO!$H11=1,COUNTRY_INFO!F11+COUNTRY_INFO!G11,0),IF(COUNTRY_INFO!$H11=1,COUNTRY_INFO!F11+COUNTRY_INFO!G11,IF(COUNTRY_INFO!$I11=1,IF(COUNTRY_INFO!M11>=(COUNTRY_INFO!F11+COUNTRY_INFO!G11),COUNTRY_INFO!F11+COUNTRY_INFO!G11,COUNTRY_INFO!$M11),0))))","v":318526},{"$f":"IF(AND(INTRO!$E$39=\"Non-endemic\",INTRO!$E$37=\"Non-endemic\"),\"Not required\",IF(INTRO!$E$39=\"Non-endemic\",\"Treat with DEC\",COUNTRY_INFO!P11))","v":0},{"$f":"IF(INTRO!$E$39<>\"Non-endemic\",COUNTRY_INFO!Q11,\"Not required\")","v":1},{"$f":"IF(COUNTRY_INFO!H11=1, IF($E11=1,$D11, 0),0)","v":0},{"$f":"IF(INTRO!$E$39<>\"Endemic\",0, IF(AND(COUNTRY_INFO!$I11=1,$F11<>0),IF(COUNTRY_INFO!M11>=(COUNTRY_INFO!F11+COUNTRY_INFO!G11),COUNTRY_INFO!F11+COUNTRY_INFO!G11,COUNTRY_INFO!$M11), 0))","v":318526},null,318526,0,891872.79999999993,0,891872.79999999993,0,891872.79999999993,1784]
[{"$f":"IF(INTRO!$E$39=\"Non-endemic\",\" \",IF(COUNTRY_INFO!A12=0,\" \",COUNTRY_INFO!A12))","v":"Sierra Leone"},{"$f":"IF(INTRO!$E$39=\"Non-endemic\",\" \",IF(COUNTRY_INFO!B12=0,\" \",COUNTRY_INFO!B12))","v":"SOUHTERN"},{"$f":"IF(INTRO!$E$39=\"Non-endemic\",\" \",IF(COUNTRY_INFO!C12=0,\" \",COUNTRY_INFO!C12))","v":"BONTHE "},{"$f":"IF(INTRO!$E$39=\"Non-endemic\",0,IF(INTRO!$E$39=\"Endemic but PC is not required\",IF(COUNTRY_INFO!$H12=1,COUNTRY_INFO!F12+COUNTRY_INFO!G12,0),IF(COUNTRY_INFO!$H12=1,COUNTRY_INFO!F12+COUNTRY_INFO!G12,IF(COUNTRY_INFO!$I12=1,IF(COUNTRY_INFO!M12>=(COUNTRY_INFO!F12+COUNTRY_INFO!G12),COUNTRY_INFO!F12+COUNTRY_INFO!G12,COUNTRY_INFO!$M12),0))))","v":178665},{"$f":"IF(AND(INTRO!$E$39=\"Non-endemic\",INTRO!$E$37=\"Non-endemic\"),\"Not required\",IF(INTRO!$E$39=\"Non-endemic\",\"Treat with DEC\",COUNTRY_INFO!P12))","v":0},{"$f":"IF(INTRO!$E$39<>\"Non-endemic\",COUNTRY_INFO!Q12,\"Not required\")","v":1},{"$f":"IF(COUNTRY_INFO!H12=1, IF($E12=1,$D12, 0),0)","v":0},{"$f":"IF(INTRO!$E$39<>\"Endemic\",0, IF(AND(COUNTRY_INFO!$I12=1,$F12<>0),IF(COUNTRY_INFO!M12>=(COUNTRY_INFO!F12+COUNTRY_INFO!G12),COUNTRY_INFO!F12+COUNTRY_INFO!G12,COUNTRY_INFO!$M12), 0))","v":178665},null,178665,0,500261.99999999994,0,500261.99999999994,0,500261.99999999994,1001]
[{"$f":"IF(INTRO!$E$39=\"Non-endemic\",\" \",IF(COUNTRY_INFO!A13=0,\" \",COUNTRY_INFO!A13))","v":"Sierra Leone"},{"$f":"IF(INTRO!$E$39=\"Non-endemic\",\" \",IF(COUNTRY_INFO!B13=0,\" \",COUNTRY_INFO!B13))","v":"EASTERN"},{"$f":"IF(INTRO!$E$39=\"Non-endemic\",\" \",IF(COUNTRY_INFO!C13=0,\" \",COUNTRY_INFO!C13))","v":"KENEMA"},{"$f":"IF(INTRO!$E$39=\"Non-endemic\",0,IF(INTRO!$E$39=\"Endemic but PC is not required\",IF(COUNTRY_INFO!$H13=1,COUNTRY_INFO!F13+COUNTRY_INFO!G13,0),IF(COUNTRY_INFO!$H13=1,COUNTRY_INFO!F13+COUNTRY_INFO!G13,IF(COUNTRY_INFO!$I13=1,IF(COUNTRY_INFO!M13>=(COUNTRY_INFO!F13+COUNTRY_INFO!G13),COUNTRY_INFO!F13+COUNTRY_INFO!G13,COUNTRY_INFO!$M13),0))))","v":703171},{"$f":"IF(AND(INTRO!$E$39=\"Non-endemic\",INTRO!$E$37=\"Non-endemic\"),\"Not required\",IF(INTRO!$E$39=\"Non-endemic\",\"Treat with DEC\",COUNTRY_INFO!P13))","v":1},{"$f":"IF(INTRO!$E$39<>\"Non-endemic\",COUNTRY_INFO!Q13,\"Not required\")","v":1},{"$f":"IF(COUNTRY_INFO!H13=1, IF($E13=1,$D13, 0),0)","v":703171},{"$f":"IF(INTRO!$E$39<>\"Endemic\",0, IF(AND(COUNTRY_INFO!$I13=1,$F13<>0),IF(COUNTRY_INFO!M13>=(COUNTRY_INFO!F13+COUNTRY_INFO!G13),COUNTRY_INFO!F13+COUNTRY_INFO!G13,COUNTRY_INFO!$M13), 0))","v":703171},null,703171,0,0,1968878.7999999998,1968878.7999999998,0,1968878.7999999998,3938]
[{"$f":"IF(INTRO!$E$39=\"Non-endemic\",\" \",IF(COUNTRY_INFO!A14=0,\" \",COUNTRY_INFO!A14))","v":"Sierra Leone"},{"$f":"IF(INTRO!$E$39=\"Non-endemic\",\" \",IF(COUNTRY_INFO!B14=0,\" \",COUNTRY_INFO!B14))","v":"EASTERN"},{"$f":"IF(INTRO!$E$39=\"Non-endemic\",\" \",IF(COUNTRY_INFO!C14=0,\" \",COUNTRY_INFO!C14))","v":"KONO"},{"$f":"IF(INTRO!$E$39=\"Non-endemic\",0,IF(INTRO!$E$39=\"Endemic but PC is not required\",IF(COUNTRY_INFO!$H14=1,COUNTRY_INFO!F14+COUNTRY_INFO!G14,0),IF(COUNTRY_INFO!$H14=1,COUNTRY_INFO!F14+COUNTRY_INFO!G14,IF(COUNTRY_INFO!$I14=1,IF(COUNTRY_INFO!M14>=(COUNTRY_INFO!F14+COUNTRY_INFO!G14),COUNTRY_INFO!F14+COUNTRY_INFO!G14,COUNTRY_INFO!$M14),0))))","v":525171},{"$f":"IF(AND(INTRO!$E$39=\"Non-endemic\",INTRO!$E$37=\"Non-endemic\"),\"Not required\",IF(INTRO!$E$39=\"Non-endemic\",\"Treat with DEC\",COUNTRY_INFO!P14))","v":0},{"$f":"IF(INTRO!$E$39<>\"Non-endemic\",COUNTRY_INFO!Q14,\"Not required\")","v":1},{"$f":"IF(COUNTRY_INFO!H14=1, IF($E14=1,$D14, 0),0)","v":0},{"$f":"IF(INTRO!$E$39<>\"Endemic\",0, IF(AND(COUNTRY_INFO!$I14=1,$F14<>0),IF(COUNTRY_INFO!M14>=(COUNTRY_INFO!F14+COUNTRY_INFO!G14),COUNTRY_INFO!F14+COUNTRY_INFO!G14,COUNTRY_INFO!$M14), 0))","v":525171},null,525171,0,1470478.7999999998,0,1470478.7999999998,0,1470478.7999999998,2941]
[{"$f":"IF(INTRO!$E$39=\"Non-endemic\",\" \",IF(COUNTRY_INFO!A15=0,\" \",COUNTRY_INFO!A15))","v":"Sierra Leone"},{"$f":"IF(INTRO!$E$39=\"Non-endemic\",\" \",IF(COUNTRY_INFO!B15=0,\" \",COUNTRY_INFO!B15))","v":"EASTERN"},{"$f":"IF(INTRO!$E$39=\"Non-endemic\",\" \",IF(COUNTRY_INFO!C15=0,\" \",COUNTRY_INFO!C15))","v":"KAILAHUN "},{"$f":"IF(INTRO!$E$39=\"Non-endemic\",0,IF(INTRO!$E$39=\"Endemic but PC is not required\",IF(COUNTRY_INFO!$H15=1,COUNTRY_INFO!F15+COUNTRY_INFO!G15,0),IF(COUNTRY_INFO!$H15=1,COUNTRY_INFO!F15+COUNTRY_INFO!G15,IF(COUNTRY_INFO!$I15=1,IF(COUNTRY_INFO!M15>=(COUNTRY_INFO!F15+COUNTRY_INFO!G15),COUNTRY_INFO!F15+COUNTRY_INFO!G15,COUNTRY_INFO!$M15),0))))","v":648226},{"$f":"IF(AND(INTRO!$E$39=\"Non-endemic\",INTRO!$E$37=\"Non-endemic\"),\"Not required\",IF(INTRO!$E$39=\"Non-endemic\",\"Treat with DEC\",COUNTRY_INFO!P15))","v":1},{"$f":"IF(INTRO!$E$39<>\"Non-endemic\",COUNTRY_INFO!Q15,\"Not required\")","v":1},{"$f":"IF(COUNTRY_INFO!H15=1, IF($E15=1,$D15, 0),0)","v":648226},{"$f":"IF(INTRO!$E$39<>\"Endemic\",0, IF(AND(COUNTRY_INFO!$I15=1,$F15<>0),IF(COUNTRY_INFO!M15>=(COUNTRY_INFO!F15+COUNTRY_INFO!G15),COUNTRY_INFO!F15+COUNTRY_INFO!G15,COUNTRY_INFO!$M15), 0))","v":648226},null,648226,0,0,1815032.7999999998,1815032.7999999998,0,1815032.7999999998,3631]
[{"$f":"IF(INTRO!$E$39=\"Non-endemic\",\" \",IF(COUNTRY_INFO!A16=0,\" \",COUNTRY_INFO!A16))","v":"Sierra Leone"},{"$f":"IF(INTRO!$E$39=\"Non-endemic\",\" \",IF(COUNTRY_INFO!B16=0,\" \",COUNTRY_INFO!B16))","v":"NORTHERN"},{"$f":"IF(INTRO!$E$39=\"Non-endemic\",\" \",IF(COUNTRY_INFO!C16=0,\" \",COUNTRY_INFO!C16))","v":"BOMBALI"},{"$f":"IF(INTRO!$E$39=\"Non-endemic\",0,IF(INTRO!$E$39=\"Endemic but PC is not required\",IF(COUNTRY_INFO!$H16=1,COUNTRY_INFO!F16+COUNTRY_INFO!G16,0),IF(COUNTRY_INFO!$H16=1,COUNTRY_INFO!F16+COUNTRY_INFO!G16,IF(COUNTRY_INFO!$I16=1,IF(COUNTRY_INFO!M16>=(COUNTRY_INFO!F16+COUNTRY_INFO!G16),COUNTRY_INFO!F16+COUNTRY_INFO!G16,COUNTRY_INFO!$M16),0))))","v":591903},{"$f":"IF(AND(INTRO!$E$39=\"Non-endemic\",INTRO!$E$37=\"Non-endemic\"),\"Not required\",IF(INTRO!$E$39=\"Non-endemic\",\"Treat with DEC\",COUNTRY_INFO!P16))","v":1},{"$f":"IF(INTRO!$E$39<>\"Non-endemic\",COUNTRY_INFO!Q16,\"Not required\")","v":1},{"$f":"IF(COUNTRY_INFO!H16=1, IF($E16=1,$D16, 0),0)","v":591903},{"$f":"IF(INTRO!$E$39<>\"Endemic\",0, IF(AND(COUNTRY_INFO!$I16=1,$F16<>0),IF(COUNTRY_INFO!M16>=(COUNTRY_INFO!F16+COUNTRY_INFO!G16),COUNTRY_INFO!F16+COUNTRY_INFO!G16,COUNTRY_INFO!$M16), 0))","v":591903},null,591903,0,0,1657328.4,1657328.4,0,1657328.4,3315]
[{"$f":"IF(INTRO!$E$39=\"Non-endemic\",\" \",IF(COUNTRY_INFO!A17=0,\" \",COUNTRY_INFO!A17))","v":"Sierra Leone"},{"$f":"IF(INTRO!$E$39=\"Non-endemic\",\" \",IF(COUNTRY_INFO!B17=0,\" \",COUNTRY_INFO!B17))","v":"NORTHERN"},{"$f":"IF(INTRO!$E$39=\"Non-endemic\",\" \",IF(COUNTRY_INFO!C17=0,\" \",COUNTRY_INFO!C17))","v":"TONKOLILI"},{"$f":"IF(INTRO!$E$39=\"Non-endemic\",0,IF(INTRO!$E$39=\"Endemic but PC is not required\",IF(COUNTRY_INFO!$H17=1,COUNTRY_INFO!F17+COUNTRY_INFO!G17,0),IF(COUNTRY_INFO!$H17=1,COUNTRY_INFO!F17+COUNTRY_INFO!G17,IF(COUNTRY_INFO!$I17=1,IF(COUNTRY_INFO!M17>=(COUNTRY_INFO!F17+COUNTRY_INFO!G17),COUNTRY_INFO!F17+COUNTRY_INFO!G17,COUNTRY_INFO!$M17),0))))","v":494742},{"$f":"IF(AND(INTRO!$E$39=\"Non-endemic\",INTRO!$E$37=\"Non-endemic\"),\"Not required\",IF(INTRO!$E$39=\"Non-endemic\",\"Treat with DEC\",COUNTRY_INFO!P17))","v":0},{"$f":"IF(INTRO!$E$39<>\"Non-endemic\",COUNTRY_INFO!Q17,\"Not required\")","v":1},{"$f":"IF(COUNTRY_INFO!H17=1, IF($E17=1,$D17, 0),0)","v":0},{"$f":"IF(INTRO!$E$39<>\"Endemic\",0, IF(AND(COUNTRY_INFO!$I17=1,$F17<>0),IF(COUNTRY_INFO!M17>=(COUNTRY_INFO!F17+COUNTRY_INFO!G17),COUNTRY_INFO!F17+COUNTRY_INFO!G17,COUNTRY_INFO!$M17), 0))","v":494742},null,494742,0,1385277.5999999999,0,1385277.5999999999,0,1385277.5999999999,2771]
[{"$f":"IF(INTRO!$E$39=\"Non-endemic\",\" \",IF(COUNTRY_INFO!A18=0,\" \",COUNTRY_INFO!A18))","v":"Sierra Leone"},{"$f":"IF(INTRO!$E$39=\"Non-endemic\",\" \",IF(COUNTRY_INFO!B18=0,\" \",COUNTRY_INFO!B18))","v":"NORTHERN"},{"$f":"IF(INTRO!$E$39=\"Non-endemic\",\" \",IF(COUNTRY_INFO!C18=0,\" \",COUNTRY_INFO!C18))","v":"PORT LOKO"},{"$f":"IF(INTRO!$E$39=\"Non-endemic\",0,IF(INTRO!$E$39=\"Endemic but PC is not required\",IF(COUNTRY_INFO!$H18=1,COUNTRY_INFO!F18+COUNTRY_INFO!G18,0),IF(COUNTRY_INFO!$H18=1,COUNTRY_INFO!F18+COUNTRY_INFO!G18,IF(COUNTRY_INFO!$I18=1,IF(COUNTRY_INFO!M18>=(COUNTRY_INFO!F18+COUNTRY_INFO!G18),COUNTRY_INFO!F18+COUNTRY_INFO!G18,COUNTRY_INFO!$M18),0))))","v":572259},{"$f":"IF(AND(INTRO!$E$39=\"Non-endemic\",INTRO!$E$37=\"Non-endemic\"),\"Not required\",IF(INTRO!$E$39=\"Non-endemic\",\"Treat with DEC\",COUNTRY_INFO!P18))","v":0},{"$f":"IF(INTRO!$E$39<>\"Non-endemic\",COUNTRY_INFO!Q18,\"Not required\")","v":1},{"$f":"IF(COUNTRY_INFO!H18=1, IF($E18=1,$D18, 0),0)","v":0},{"$f":"IF(INTRO!$E$39<>\"Endemic\",0, IF(AND(COUNTRY_INFO!$I18=1,$F18<>0),IF(COUNTRY_INFO!M18>=(COUNTRY_INFO!F18+COUNTRY_INFO!G18),COUNTRY_INFO!F18+COUNTRY_INFO!G18,COUNTRY_INFO!$M18), 0))","v":572259},null,572259,0,1602325.2,0,1602325.2,0,1602325.2,3205]
[{"$f":"IF(INTRO!$E$39=\"Non-endemic\",\" \",IF(COUNTRY_INFO!A19=0,\" \",COUNTRY_INFO!A19))","v":"Sierra Leone"},{"$f":"IF(INTRO!$E$39=\"Non-endemic\",\" \",IF(COUNTRY_INFO!B19=0,\" \",COUNTRY_INFO!B19))","v":"NORTHERN"},{"$f":"IF(INTRO!$E$39=\"Non-endemic\",\" \",IF(COUNTRY_INFO!C19=0,\" \",COUNTRY_INFO!C19))","v":"KOINADUGU"},{"$f":"IF(INTRO!$E$39=\"Non-endemic\",0,IF(INTRO!$E$39=\"Endemic but PC is not required\",IF(COUNTRY_INFO!$H19=1,COUNTRY_INFO!F19+COUNTRY_INFO!G19,0),IF(COUNTRY_INFO!$H19=1,COUNTRY_INFO!F19+COUNTRY_INFO!G19,IF(COUNTRY_INFO!$I19=1,IF(COUNTRY_INFO!M19>=(COUNTRY_INFO!F19+COUNTRY_INFO!G19),COUNTRY_INFO!F19+COUNTRY_INFO!G19,COUNTRY_INFO!$M19),0))))","v":460099},{"$f":"IF(AND(INTRO!$E$39=\"Non-endemic\",INTRO!$E$37=\"Non-endemic\"),\"Not required\",IF(INTRO!$E$39=\"Non-endemic\",\"Treat with DEC\",COUNTRY_INFO!P19))","v":1},{"$f":"IF(INTRO!$E$39<>\"Non-endemic\",COUNTRY_INFO!Q19,\"Not required\")","v":1},{"$f":"IF(COUNTRY_INFO!H19=1, IF($E19=1,$D19, 0),0)","v":460099},{"$f":"IF(INTRO!$E$39<>\"Endemic\",0, IF(AND(COUNTRY_INFO!$I19=1,$F19<>0),IF(COUNTRY_INFO!M19>=(COUNTRY_INFO!F19+COUNTRY_INFO!G19),COUNTRY_INFO!F19+COUNTRY_INFO!G19,COUNTRY_INFO!$M19), 0))","v":460099},null,460099,0,0,1288277.2,1288277.2,0,1288277.2,2577]
[{"$f":"IF(INTRO!$E$39=\"Non-endemic\",\" \",IF(COUNTRY_INFO!A20=0,\" \",COUNTRY_INFO!A20))","v":"Sierra Leone"},{"$f":"IF(INTRO!$E$39=\"Non-endemic\",\" \",IF(COUNTRY_INFO!B20=0,\" \",COUNTRY_INFO!B20))","v":"NORTHERN"},{"$f":"IF(INTRO!$E$39=\"Non-endemic\",\" \",IF(COUNTRY_INFO!C20=0,\" \",COUNTRY_INFO!C20))","v":"KAMBIA "},{"$f":"IF(INTRO!$E$39=\"Non-endemic\",0,IF(INTRO!$E$39=\"Endemic but PC is not required\",IF(COUNTRY_INFO!$H20=1,COUNTRY_INFO!F20+COUNTRY_INFO!G20,0),IF(COUNTRY_INFO!$H20=1,COUNTRY_INFO!F20+COUNTRY_INFO!G20,IF(COUNTRY_INFO!$I20=1,IF(COUNTRY_INFO!M20>=(COUNTRY_INFO!F20+COUNTRY_INFO!G20),COUNTRY_INFO!F20+COUNTRY_INFO!G20,COUNTRY_INFO!$M20),0))))","v":339174},{"$f":"IF(AND(INTRO!$E$39=\"Non-endemic\",INTRO!$E$37=\"Non-endemic\"),\"Not required\",IF(INTRO!$E$39=\"Non-endemic\",\"Treat with DEC\",COUNTRY_INFO!P20))","v":0},{"$f":"IF(INTRO!$E$39<>\"Non-endemic\",COUNTRY_INFO!Q20,\"Not required\")","v":1},{"$f":"IF(COUNTRY_INFO!H20=1, IF($E20=1,$D20, 0),0)","v":0},{"$f":"IF(INTRO!$E$39<>\"Endemic\",0, IF(AND(COUNTRY_INFO!$I20=1,$F20<>0),IF(COUNTRY_INFO!M20>=(COUNTRY_INFO!F20+COUNTRY_INFO!G20),COUNTRY_INFO!F20+COUNTRY_INFO!G20,COUNTRY_INFO!$M20), 0))","v":339174},null,339174,0,949687.2,0,949687.2,0,949687.2,1900]
[{"$f":"IF(INTRO!$E$39=\"Non-endemic\",\" \",IF(COUNTRY_INFO!A21=0,\" \",COUNTRY_INFO!A21))","v":"Sierra Leone"},{"$f":"IF(INTRO!$E$39=\"Non-endemic\",\" \",IF(COUNTRY_INFO!B21=0,\" \",COUNTRY_INFO!B21))","v":"WESTERN"},{"$f":"IF(INTRO!$E$39=\"Non-endemic\",\" \",IF(COUNTRY_INFO!C21=0,\" \",COUNTRY_INFO!C21))","v":"WESTERN  RURAL"},{"$f":"IF(INTRO!$E$39=\"Non-endemic\",0,IF(INTRO!$E$39=\"Endemic but PC is not required\",IF(COUNTRY_INFO!$H21=1,COUNTRY_INFO!F21+COUNTRY_INFO!G21,0),IF(COUNTRY_INFO!$H21=1,COUNTRY_INFO!F21+COUNTRY_INFO!G21,IF(COUNTRY_INFO!$I21=1,IF(COUNTRY_INFO!M21>=(COUNTRY_INFO!F21+COUNTRY_INFO!G21),COUNTRY_INFO!F21+COUNTRY_INFO!G21,COUNTRY_INFO!$M21),0))))","v":455293},{"$f":"IF(AND(INTRO!$E$39=\"Non-endemic\",INTRO!$E$37=\"Non-endemic\"),\"Not required\",IF(INTRO!$E$39=\"Non-endemic\",\"Treat with DEC\",COUNTRY_INFO!P21))","v":1},{"$f":"IF(INTRO!$E$39<>\"Non-endemic\",COUNTRY_INFO!Q21,\"Not required\")","v":0},{"$f":"IF(COUNTRY_INFO!H21=1, IF($E21=1,$D21, 0),0)","v":455293},{"$f":"IF(INTRO!$E$39<>\"Endemic\",0, IF(AND(COUNTRY_INFO!$I21=1,$F21<>0),IF(COUNTRY_INFO!M21>=(COUNTRY_INFO!F21+COUNTRY_INFO!G21),COUNTRY_INFO!F21+COUNTRY_INFO!G21,COUNTRY_INFO!$M21), 0))","v":0},null,0,1274820.3999999999,0,0,1274820.3999999999,0,1274820.3999999999,2550]
[{"$f":"IF(INTRO!$E$39=\"Non-endemic\",\" \",IF(COUNTRY_INFO!A22=0,\" \",COUNTRY_INFO!A22))","v":"Sierra Leone"},{"$f":"IF(INTRO!$E$39=\"Non-endemic\",\" \",IF(COUNTRY_INFO!B22=0,\" \",COUNTRY_INFO!B22))","v":"WESTERN"},{"$f":"IF(INTRO!$E$39=\"Non-endemic\",\" \",IF(COUNTRY_INFO!C22=0,\" \",COUNTRY_INFO!C22))","v":"WESTERN  URBAN "},{"$f":"IF(INTRO!$E$39=\"Non-endemic\",0,IF(INTRO!$E$39=\"Endemic but PC is not required\",IF(COUNTRY_INFO!$H22=1,COUNTRY_INFO!F22+COUNTRY_INFO!G22,0),IF(COUNTRY_INFO!$H22=1,COUNTRY_INFO!F22+COUNTRY_INFO!G22,IF(COUNTRY_INFO!$I22=1,IF(COUNTRY_INFO!M22>=(COUNTRY_INFO!F22+COUNTRY_INFO!G22),COUNTRY_INFO!F22+COUNTRY_INFO!G22,COUNTRY_INFO!$M22),0))))","v":0},{"$f":"IF(AND(INTRO!$E$39=\"Non-endemic\",INTRO!$E$37=\"Non-endemic\"),\"Not required\",IF(INTRO!$E$39=\"Non-endemic\",\"Treat with DEC\",COUNTRY_INFO!P22))","v":0},{"$f":"IF(INTRO!$E$39<>\"Non-endemic\",COUNTRY_INFO!Q22,\"Not required\")","v":0},{"$f":"IF(COUNTRY_INFO!H22=1, IF($E22=1,$D22, 0),0)","v":0},{"$f":"IF(INTRO!$E$39<>\"Endemic\",0, IF(AND(COUNTRY_INFO!$I22=1,$F22<>0),IF(COUNTRY_INFO!M22>=(COUNTRY_INFO!F22+COUNTRY_INFO!G22),COUNTRY_INFO!F22+COUNTRY_INFO!G22,COUNTRY_INFO!$M22), 0))","v":0},null,0,0,0,0,0,0,0,0]

{"sheet":"IVM+","index":6,"n_rows":22,"n_cols":9,"rows_kept":22,"cut":false,"hidden":true,"merged":[[6,0,7,0],[6,1,7,1],[6,2,7,2],[6,3,7,3],[3,0,3,2],[5,0,5,2],[6,5,7,5],[6,6,7,6],[6,7,7,7],[6,8,7,8],[5,4,7,4],[5,5,5,8]]}
["Ivermectin (IVM) for IDA therapy"]
["Administrative structure, eligible population by age group, treatment plan and information about tablets"]
[]
["TOTAL",null,null,null,{"$f":"SUM(E$9:E$1000)","v":0},0,0,0,0]
[]
["Country administrative structure",null,null,"Treatment plan","Population targeted for treatment with IVM \n(IDA therapy)","Ivermectin (IVM)"]
["Country","Province/State","District","LF",null,"Total required","Remaining in stock","Tablets to be procured","Bottles (3mg)\n500 tablets"]
[]
[{"$f":"IF(AND(INTRO!$E$37=\"Endemic\",INTRO!$E$39=\"Non-endemic\"),IF(COUNTRY_INFO!A9=0,\" \",COUNTRY_INFO!A9),\" \")","v":" "},{"$f":"IF(AND(INTRO!$E$37=\"Endemic\",INTRO!$E$39=\"Non-endemic\"),IF(COUNTRY_INFO!B9=0,\" \",COUNTRY_INFO!B9),\" \")","v":" "},{"$f":"IF(AND(INTRO!$E$37=\"Endemic\",INTRO!$E$39=\"Non-endemic\"),IF(COUNTRY_INFO!C9=0,\" \",COUNTRY_INFO!C9),\" \")","v":" "},{"$f":"IF(COUNTRY_INFO!T9<>\"\",COUNTRY_INFO!P9,0)","v":0},{"$f":"IF(AND(COUNTRY_INFO!T9<>\"\",COUNTRY_INFO!$H9=1),COUNTRY_INFO!F9+COUNTRY_INFO!G9,0)","v":0},{"$f":"E9*2.8","v":0},null,{"$f":"IF($F9>$G9,$F9-$G9,0)","v":0},{"$f":"ROUNDUP($F9/500,0)","v":0}]
[{"$f":"IF(AND(INTRO!$E$37=\"Endemic\",INTRO!$E$39=\"Non-endemic\"),IF(COUNTRY_INFO!A10=0,\" \",COUNTRY_INFO!A10),\" \")","v":" "},{"$f":"IF(AND(INTRO!$E$37=\"Endemic\",INTRO!$E$39=\"Non-endemic\"),IF(COUNTRY_INFO!B10=0,\" \",COUNTRY_INFO!B10),\" \")","v":" "},{"$f":"IF(AND(INTRO!$E$37=\"Endemic\",INTRO!$E$39=\"Non-endemic\"),IF(COUNTRY_INFO!C10=0,\" \",COUNTRY_INFO!C10),\" \")","v":" "},{"$f":"IF(COUNTRY_INFO!T10<>\"\",COUNTRY_INFO!P10,0)","v":0},{"$f":"IF(AND(COUNTRY_INFO!T10<>\"\",COUNTRY_INFO!$H10=1),COUNTRY_INFO!F10+COUNTRY_INFO!G10,0)","v":0},0,null,0,0]
[{"$f":"IF(AND(INTRO!$E$37=\"Endemic\",INTRO!$E$39=\"Non-endemic\"),IF(COUNTRY_INFO!A11=0,\" \",COUNTRY_INFO!A11),\" \")","v":" "},{"$f":"IF(AND(INTRO!$E$37=\"Endemic\",INTRO!$E$39=\"Non-endemic\"),IF(COUNTRY_INFO!B11=0,\" \",COUNTRY_INFO!B11),\" \")","v":" "},{"$f":"IF(AND(INTRO!$E$37=\"Endemic\",INTRO!$E$39=\"Non-endemic\"),IF(COUNTRY_INFO!C11=0,\" \",COUNTRY_INFO!C11),\" \")","v":" "},{"$f":"IF(COUNTRY_INFO!T11<>\"\",COUNTRY_INFO!P11,0)","v":0},{"$f":"IF(AND(COUNTRY_INFO!T11<>\"\",COUNTRY_INFO!$H11=1),COUNTRY_INFO!F11+COUNTRY_INFO!G11,0)","v":0},0,null,0,0]
[{"$f":"IF(AND(INTRO!$E$37=\"Endemic\",INTRO!$E$39=\"Non-endemic\"),IF(COUNTRY_INFO!A12=0,\" \",COUNTRY_INFO!A12),\" \")","v":" "},{"$f":"IF(AND(INTRO!$E$37=\"Endemic\",INTRO!$E$39=\"Non-endemic\"),IF(COUNTRY_INFO!B12=0,\" \",COUNTRY_INFO!B12),\" \")","v":" "},{"$f":"IF(AND(INTRO!$E$37=\"Endemic\",INTRO!$E$39=\"Non-endemic\"),IF(COUNTRY_INFO!C12=0,\" \",COUNTRY_INFO!C12),\" \")","v":" "},{"$f":"IF(COUNTRY_INFO!T12<>\"\",COUNTRY_INFO!P12,0)","v":0},{"$f":"IF(AND(COUNTRY_INFO!T12<>\"\",COUNTRY_INFO!$H12=1),COUNTRY_INFO!F12+COUNTRY_INFO!G12,0)","v":0},0,null,0,0]
[{"$f":"IF(AND(INTRO!$E$37=\"Endemic\",INTRO!$E$39=\"Non-endemic\"),IF(COUNTRY_INFO!A13=0,\" \",COUNTRY_INFO!A13),\" \")","v":" "},{"$f":"IF(AND(INTRO!$E$37=\"Endemic\",INTRO!$E$39=\"Non-endemic\"),IF(COUNTRY_INFO!B13=0,\" \",COUNTRY_INFO!B13),\" \")","v":" "},{"$f":"IF(AND(INTRO!$E$37=\"Endemic\",INTRO!$E$39=\"Non-endemic\"),IF(COUNTRY_INFO!C13=0,\" \",COUNTRY_INFO!C13),\" \")","v":" "},{"$f":"IF(COUNTRY_INFO!T13<>\"\",COUNTRY_INFO!P13,0)","v":0},{"$f":"IF(AND(COUNTRY_INFO!T13<>\"\",COUNTRY_INFO!$H13=1),COUNTRY_INFO!F13+COUNTRY_INFO!G13,0)","v":0},0,null,0,0]
[{"$f":"IF(AND(INTRO!$E$37=\"Endemic\",INTRO!$E$39=\"Non-endemic\"),IF(COUNTRY_INFO!A14=0,\" \",COUNTRY_INFO!A14),\" \")","v":" "},{"$f":"IF(AND(INTRO!$E$37=\"Endemic\",INTRO!$E$39=\"Non-endemic\"),IF(COUNTRY_INFO!B14=0,\" \",COUNTRY_INFO!B14),\" \")","v":" "},{"$f":"IF(AND(INTRO!$E$37=\"Endemic\",INTRO!$E$39=\"Non-endemic\"),IF(COUNTRY_INFO!C14=0,\" \",COUNTRY_INFO!C14),\" \")","v":" "},{"$f":"IF(COUNTRY_INFO!T14<>\"\",COUNTRY_INFO!P14,0)","v":0},{"$f":"IF(AND(COUNTRY_INFO!T14<>\"\",COUNTRY_INFO!$H14=1),COUNTRY_INFO!F14+COUNTRY_INFO!G14,0)","v":0},0,null,0,0]
[{"$f":"IF(AND(INTRO!$E$37=\"Endemic\",INTRO!$E$39=\"Non-endemic\"),IF(COUNTRY_INFO!A15=0,\" \",COUNTRY_INFO!A15),\" \")","v":" "},{"$f":"IF(AND(INTRO!$E$37=\"Endemic\",INTRO!$E$39=\"Non-endemic\"),IF(COUNTRY_INFO!B15=0,\" \",COUNTRY_INFO!B15),\" \")","v":" "},{"$f":"IF(AND(INTRO!$E$37=\"Endemic\",INTRO!$E$39=\"Non-endemic\"),IF(COUNTRY_INFO!C15=0,\" \",COUNTRY_INFO!C15),\" \")","v":" "},{"$f":"IF(COUNTRY_INFO!T15<>\"\",COUNTRY_INFO!P15,0)","v":0},{"$f":"IF(AND(COUNTRY_INFO!T15<>\"\",COUNTRY_INFO!$H15=1),COUNTRY_INFO!F15+COUNTRY_INFO!G15,0)","v":0},0,null,0,0]
[{"$f":"IF(AND(INTRO!$E$37=\"Endemic\",INTRO!$E$39=\"Non-endemic\"),IF(COUNTRY_INFO!A16=0,\" \",COUNTRY_INFO!A16),\" \")","v":" "},{"$f":"IF(AND(INTRO!$E$37=\"Endemic\",INTRO!$E$39=\"Non-endemic\"),IF(COUNTRY_INFO!B16=0,\" \",COUNTRY_INFO!B16),\" \")","v":" "},{"$f":"IF(AND(INTRO!$E$37=\"Endemic\",INTRO!$E$39=\"Non-endemic\"),IF(COUNTRY_INFO!C16=0,\" \",COUNTRY_INFO!C16),\" \")","v":" "},{"$f":"IF(COUNTRY_INFO!T16<>\"\",COUNTRY_INFO!P16,0)","v":0},{"$f":"IF(AND(COUNTRY_INFO!T16<>\"\",COUNTRY_INFO!$H16=1),COUNTRY_INFO!F16+COUNTRY_INFO!G16,0)","v":0},0,null,0,0]
[{"$f":"IF(AND(INTRO!$E$37=\"Endemic\",INTRO!$E$39=\"Non-endemic\"),IF(COUNTRY_INFO!A17=0,\" \",COUNTRY_INFO!A17),\" \")","v":" "},{"$f":"IF(AND(INTRO!$E$37=\"Endemic\",INTRO!$E$39=\"Non-endemic\"),IF(COUNTRY_INFO!B17=0,\" \",COUNTRY_INFO!B17),\" \")","v":" "},{"$f":"IF(AND(INTRO!$E$37=\"Endemic\",INTRO!$E$39=\"Non-endemic\"),IF(COUNTRY_INFO!C17=0,\" \",COUNTRY_INFO!C17),\" \")","v":" "},{"$f":"IF(COUNTRY_INFO!T17<>\"\",COUNTRY_INFO!P17,0)","v":0},{"$f":"IF(AND(COUNTRY_INFO!T17<>\"\",COUNTRY_INFO!$H17=1),COUNTRY_INFO!F17+COUNTRY_INFO!G17,0)","v":0},0,null,0,0]
[{"$f":"IF(AND(INTRO!$E$37=\"Endemic\",INTRO!$E$39=\"Non-endemic\"),IF(COUNTRY_INFO!A18=0,\" \",COUNTRY_INFO!A18),\" \")","v":" "},{"$f":"IF(AND(INTRO!$E$37=\"Endemic\",INTRO!$E$39=\"Non-endemic\"),IF(COUNTRY_INFO!B18=0,\" \",COUNTRY_INFO!B18),\" \")","v":" "},{"$f":"IF(AND(INTRO!$E$37=\"Endemic\",INTRO!$E$39=\"Non-endemic\"),IF(COUNTRY_INFO!C18=0,\" \",COUNTRY_INFO!C18),\" \")","v":" "},{"$f":"IF(COUNTRY_INFO!T18<>\"\",COUNTRY_INFO!P18,0)","v":0},{"$f":"IF(AND(COUNTRY_INFO!T18<>\"\",COUNTRY_INFO!$H18=1),COUNTRY_INFO!F18+COUNTRY_INFO!G18,0)","v":0},0,null,0,0]
[{"$f":"IF(AND(INTRO!$E$37=\"Endemic\",INTRO!$E$39=\"Non-endemic\"),IF(COUNTRY_INFO!A19=0,\" \",COUNTRY_INFO!A19),\" \")","v":" "},{"$f":"IF(AND(INTRO!$E$37=\"Endemic\",INTRO!$E$39=\"Non-endemic\"),IF(COUNTRY_INFO!B19=0,\" \",COUNTRY_INFO!B19),\" \")","v":" "},{"$f":"IF(AND(INTRO!$E$37=\"Endemic\",INTRO!$E$39=\"Non-endemic\"),IF(COUNTRY_INFO!C19=0,\" \",COUNTRY_INFO!C19),\" \")","v":" "},{"$f":"IF(COUNTRY_INFO!T19<>\"\",COUNTRY_INFO!P19,0)","v":0},{"$f":"IF(AND(COUNTRY_INFO!T19<>\"\",COUNTRY_INFO!$H19=1),COUNTRY_INFO!F19+COUNTRY_INFO!G19,0)","v":0},0,null,0,0]
[{"$f":"IF(AND(INTRO!$E$37=\"Endemic\",INTRO!$E$39=\"Non-endemic\"),IF(COUNTRY_INFO!A20=0,\" \",COUNTRY_INFO!A20),\" \")","v":" "},{"$f":"IF(AND(INTRO!$E$37=\"Endemic\",INTRO!$E$39=\"Non-endemic\"),IF(COUNTRY_INFO!B20=0,\" \",COUNTRY_INFO!B20),\" \")","v":" "},{"$f":"IF(AND(INTRO!$E$37=\"Endemic\",INTRO!$E$39=\"Non-endemic\"),IF(COUNTRY_INFO!C20=0,\" \",COUNTRY_INFO!C20),\" \")","v":" "},{"$f":"IF(COUNTRY_INFO!T20<>\"\",COUNTRY_INFO!P20,0)","v":0},{"$f":"IF(AND(COUNTRY_INFO!T20<>\"\",COUNTRY_INFO!$H20=1),COUNTRY_INFO!F20+COUNTRY_INFO!G20,0)","v":0},0,null,0,0]
[{"$f":"IF(AND(INTRO!$E$37=\"Endemic\",INTRO!$E$39=\"Non-endemic\"),IF(COUNTRY_INFO!A21=0,\" \",COUNTRY_INFO!A21),\" \")","v":" "},{"$f":"IF(AND(INTRO!$E$37=\"Endemic\",INTRO!$E$39=\"Non-endemic\"),IF(COUNTRY_INFO!B21=0,\" \",COUNTRY_INFO!B21),\" \")","v":" "},{"$f":"IF(AND(INTRO!$E$37=\"Endemic\",INTRO!$E$39=\"Non-endemic\"),IF(COUNTRY_INFO!C21=0,\" \",COUNTRY_INFO!C21),\" \")","v":" "},{"$f":"IF(COUNTRY_INFO!T21<>\"\",COUNTRY_INFO!P21,0)","v":0},{"$f":"IF(AND(COUNTRY_INFO!T21<>\"\",COUNTRY_INFO!$H21=1),COUNTRY_INFO!F21+COUNTRY_INFO!G21,0)","v":0},0,null,0,0]
[{"$f":"IF(AND(INTRO!$E$37=\"Endemic\",INTRO!$E$39=\"Non-endemic\"),IF(COUNTRY_INFO!A22=0,\" \",COUNTRY_INFO!A22),\" \")","v":" "},{"$f":"IF(AND(INTRO!$E$37=\"Endemic\",INTRO!$E$39=\"Non-endemic\"),IF(COUNTRY_INFO!B22=0,\" \",COUNTRY_INFO!B22),\" \")","v":" "},{"$f":"IF(AND(INTRO!$E$37=\"Endemic\",INTRO!$E$39=\"Non-endemic\"),IF(COUNTRY_INFO!C22=0,\" \",COUNTRY_INFO!C22),\" \")","v":" "},{"$f":"IF(COUNTRY_INFO!T22<>\"\",COUNTRY_INFO!P22,0)","v":0},{"$f":"IF(AND(COUNTRY_INFO!T22<>\"\",COUNTRY_INFO!$H22=1),COUNTRY_INFO!F22+COUNTRY_INFO!G22,0)","v":0},0,null,0,0]

{"sheet":"SUMMARY","index":7,"n_rows":93,"n_cols":8,"rows_kept":93,"cut":false,"hidden":false,"merged":[[82,2,82,7],[83,3,83,7],[50,5,50,6],[46,5,46,6],[47,5,47,6],[48,5,48,6],[62,4,62,6],[53,1,53,7],[59,1,59,7],[54,1,54,7],[55,1,55,7],[81,1,81,7],[61,1,61,7],[79,1,79,7],[80,1,80,7],[69,1,69,7],[41,5,41,6],[9,1,10,1],[9,2,9,5],[9,6,9,7],[49,5,49,6],[6,1,6,7],[5,2,5,5],[68,1,68,7],[57,1,57,7],[56,1,56,7],[25,1,25,7],[21,2,24,5],[30,2,30,3],[30,4,30,5],[30,6,30,7],[42,5,42,6],[43,5,43,6],[44,5,44,6],[58,1,58,7],[45,5,45,6],[40,5,40,6],[0,1,0,7],[1,1,1,7],[2,1,2,5],[3,1,3,7],[4,1,4,7],[77,2,77,3],[63,4,63,6],[64,4,64,6],[65,4,65,6],[66,4,66,6],[76,2,76,3],[97,1,97,7],[76,4,76,5],[75,2,75,3],[73,4,73,5],[74,4,74,5],[75,4,75,5],[73,2,73,3],[74,2,74,3],[92,1,92,7],[77,4,77,5],[87,1,87,7],[91,1,91,7],[86,1,86,7],[84,1,84,2],[84,3,84,7],[83,1,83,2]]}
[]
[null,"Joint request for selected PC medicines v.3.1"]
[]
[null,"This form constitutes an official government request to WHO for the supply of the PC medicines. It can be submitted any time before 15 August of the current year for distribution of medicines during the following year, but at least 6-8 months before the planned PC intervention(s) to allow time for reviewing and approval of the request, placing order, manufacturing PC medicines and shipment to the country."]
[]
[null,"Country",{"$f":"IF(INTRO!$E$33<>0,INTRO!$E$33,\" \")","v":"Sierra Leone"},null,null,null,"Year",{"$f":"IF(INTRO!$E$35<>0,INTRO!$E$35,\" \")","v":2021}]
[]
[null,"Information on PC medicines requested to WHO"]
[]
[null,"PC medicine","Number of tablets",null,null,null,"Total number of bottles"]
[null,null,"Required","In stock","In pipeline","Requested","Required","Requested"]
[null,"Albendazole for LF",2858692,258094,null,{"$f":"IF(C12>(D12+E12),C12-D12-E12, 0)","v":2600598},{"$f":"IF($C12=0,0, IF($B12=\"Albendazole for LF\", IF($C12=ALB_MBD!$I$4,ALB_MBD!$U$4,ROUNDUP($C12/200,0)), IF($B12=\"Albendazole for STH (SAC)\", IF($C12=ALB_MBD!$L$4,ALB_MBD!$X$4,ROUNDUP($C12/200,0)), IF($B12=\"Mebendazole (SAC)\", IF($C12=ALB_MBD!$P$4,ALB_MBD!$AA$4,ROUNDUP($C12/150,0)), IF($B12=\"Diethylcarbamazine citrate\", IF($C12=DEC!$J$4,DEC!$M$4,ROUNDUP($C12/1000,0)), IF($B12=\"Praziquantel (SAC)\", IF($C12=PZQ!$O$4,PZQ!$R$4,ROUNDUP($C12/1000,0)), IF($B12=\"Ivermectin\", IF($C12=IVM!$N$4,IVM!$Q$4,$C12/500+0.49),0)))))))","v":14296},{"$f":"IF($F12=0,0,IF(OR($B12=\"Albendazole for LF\",$B12=\"Albendazole for STH (SAC)\"),$G12-ROUNDUP(($E12+$D12)/200,0),IF($B12=\"Ivermectin\",$G12-ROUNDUP(($E12+$D12)/500,0),IF($B12=\"Mebendazole (SAC)\",$G12-ROUNDUP(($E12+$D12)/150,0),$G12-ROUNDUP(($E12+$D12)/1000,0)))))","v":13005}]
[null,"Albendazole for STH (SAC)",1385052,null,null,1385052,{"$f":"IF($C13=0,0, IF($B13=\"Albendazole for LF\", IF($C13=ALB_MBD!$I$4,ALB_MBD!$U$4,ROUNDUP($C13/200,0)), IF($B13=\"Albendazole for STH (SAC)\", IF($C13=ALB_MBD!$L$4,ALB_MBD!$X$4,ROUNDUP($C13/200,0)), IF($B13=\"Mebendazole (SAC)\", IF($C13=ALB_MBD!$P$4,ALB_MBD!$AA$4,ROUNDUP($C13/150,0)), IF($B13=\"Diethylcarbamazine citrate\", IF($C13=DEC!$J$4,DEC!$M$4,ROUNDUP($C13/1000,0)), IF($B13=\"Praziquantel (SAC)\", IF($C13=PZQ!$O$4,PZQ!$R$4,ROUNDUP($C13/1000,0)), IF($B13=\"Ivermectin\", IF($C13=IVM!$N$4,IVM!$Q$4,$C13/500+0.49),0)))))))","v":6930},6930]
[null,"Ivermectin",17202147.199999996,1913676,null,15288471.199999996,{"$f":"IF($C14=0,0, IF($B14=\"Albendazole for LF\", IF($C14=ALB_MBD!$I$4,ALB_MBD!$U$4,ROUNDUP($C14/200,0)), IF($B14=\"Albendazole for STH (SAC)\", IF($C14=ALB_MBD!$L$4,ALB_MBD!$X$4,ROUNDUP($C14/200,0)), IF($B14=\"Mebendazole (SAC)\", IF($C14=ALB_MBD!$P$4,ALB_MBD!$AA$4,ROUNDUP($C14/150,0)), IF($B14=\"Diethylcarbamazine citrate\", IF($C14=DEC!$J$4,DEC!$M$4,ROUNDUP($C14/1000,0)), IF($B14=\"Praziquantel (SAC)\", IF($C14=PZQ!$O$4,PZQ!$R$4,ROUNDUP($C14/1000,0)), IF($B14=\"Ivermectin\", IF($C14=IVM!$N$4,IVM!$Q$4,$C14/500+0.49),0)))))))","v":34409},30581]
[null,"Praziquantel (SAC)",2178273.75,0,null,2178273.75,{"$f":"IF($C15=0,0, IF($B15=\"Albendazole for LF\", IF($C15=ALB_MBD!$I$4,ALB_MBD!$U$4,ROUNDUP($C15/200,0)), IF($B15=\"Albendazole for STH (SAC)\", IF($C15=ALB_MBD!$L$4,ALB_MBD!$X$4,ROUNDUP($C15/200,0)), IF($B15=\"Mebendazole (SAC)\", IF($C15=ALB_MBD!$P$4,ALB_MBD!$AA$4,ROUNDUP($C15/150,0)), IF($B15=\"Diethylcarbamazine citrate\", IF($C15=DEC!$J$4,DEC!$M$4,ROUNDUP($C15/1000,0)), IF($B15=\"Praziquantel (SAC)\", IF($C15=PZQ!$O$4,PZQ!$R$4,ROUNDUP($C15/1000,0)), IF($B15=\"Ivermectin\", IF($C15=IVM!$N$4,IVM!$Q$4,$C15/500+0.49),0)))))))","v":2182},2182]
[null,null,0,0,null,0,{"$f":"IF($C16=0,0, IF($B16=\"Albendazole for LF\", IF($C16=ALB_MBD!$I$4,ALB_MBD!$U$4,ROUNDUP($C16/200,0)), IF($B16=\"Albendazole for STH (SAC)\", IF($C16=ALB_MBD!$L$4,ALB_MBD!$X$4,ROUNDUP($C16/200,0)), IF($B16=\"Mebendazole (SAC)\", IF($C16=ALB_MBD!$P$4,ALB_MBD!$AA$4,ROUNDUP($C16/150,0)), IF($B16=\"Diethylcarbamazine citrate\", IF($C16=DEC!$J$4,DEC!$M$4,ROUNDUP($C16/1000,0)), IF($B16=\"Praziquantel (SAC)\", IF($C16=PZQ!$O$4,PZQ!$R$4,ROUNDUP($C16/1000,0)), IF($B16=\"Ivermectin\", IF($C16=IVM!$N$4,IVM!$Q$4,$C16/500+0.49),0)))))))","v":0},0]
[null,null,0,0,null,0,{"$f":"IF($C17=0,0, IF($B17=\"Albendazole for LF\", IF($C17=ALB_MBD!$I$4,ALB_MBD!$U$4,ROUNDUP($C17/200,0)), IF($B17=\"Albendazole for STH (SAC)\", IF($C17=ALB_MBD!$L$4,ALB_MBD!$X$4,ROUNDUP($C17/200,0)), IF($B17=\"Mebendazole (SAC)\", IF($C17=ALB_MBD!$P$4,ALB_MBD!$AA$4,ROUNDUP($C17/150,0)), IF($B17=\"Diethylcarbamazine citrate\", IF($C17=DEC!$J$4,DEC!$M$4,ROUNDUP($C17/1000,0)), IF($B17=\"Praziquantel (SAC)\", IF($C17=PZQ!$O$4,PZQ!$R$4,ROUNDUP($C17/1000,0)), IF($B17=\"Ivermectin\", IF($C17=IVM!$N$4,IVM!$Q$4,$C17/500+0.49),0)))))))","v":0},0]
[]
[null,"Number of people to be treated with donated medicine ( see User Guide for details )"]
[]
[null,"Disease",null,null,null,null,"Round 1","Round 2"]
[null,"Lymphatic filariasis","These figures are estimated only for targeted \nage groups to be treated with donated \nmedicines in areas where treatment for specific disease is required",null,null,null,2858692," "]
[null,"Soil-transmitted helminthiases",null,null,null,null,2109574,138978]
[null,"Onchocerciasis",null,null,null,null,5688331,0]
[null,"Schistosomiasis",null,null,null,null,871309.5," "]
[]
[]
[]
[null,"Information on planned PC interventions"]
[]
[null,"PC medicine","Planned date of the \n1st round of PC",null,"Planned date of the \n2nd round of PC",null,"Date by which the medicine \nshould arrive to the national warehouse"]
[null,"Albendazole for LF","June",2021,null,null,"March",2021]
[null,"Albendazole for STH","June",2021,null,null,"March",2021]
[null,"Ivermectin","June",2021,null,null,"March",2021]
[null,"Praziquantel","March",2021,null,null,"January",2021]
[]
[]
[]
[null,"Information on PC medicines for treatment of population not targeted with current donation through WHO"]
[]
[null,"PC medicine","Age group","# of people","# of tablets","Specify source",null,"Status"]
[null,"Praziquantel","Adults",null,null,null,null,"Required"]
[null,"Albendazole for STH","Adults"]
[]
[]
[]
[]
[]
[]
[]
[]
[]
[null,"Checklist"]
[null,"Submission"]
[null,"What should be submitted?"]
[null,"The supply of the requested medicines should be based on up-to-date epidemiological data, specific usage plans, and capacity for implementation. The following checklist ensures that all necessary forms and information are provided to WHO (in electronic format). "]
[null,"Joint request for selected PC medicines"]
[null,"Joint reporting form"]
[null,"PC epidemiological data reporting form"]
[]
[null,"Availability of funding for implementation in the year for which the medicines are requested"]
[]
[null,"Diseases \ntargeted for implementation","Total treatments","Funding secured for","Source",null,null,"Amount"]
[null,{"$f":"B22","v":"Lymphatic filariasis"},{"$f":"SUM(G22:H22)","v":2858692},"ALL","Helen Keller INTL",null,null,"YET TO PLAN"]
[null,{"$f":"B23","v":"Soil-transmitted helminthiases"},{"$f":"SUM(G23:H23)","v":2248552},"ALL","Helen Keller INTL",null,null,"YET TO PLAN"]
[null,{"$f":"B24","v":"Onchocerciasis"},{"$f":"SUM(G24:H24)","v":5688331},"ALL","Helen Keller INTL",null,null,"YET TO PLAN"]
[null,{"$f":"B25","v":"Schistosomiasis"},{"$f":"SUM(G25:H25)","v":871309.5},"ALL","Helen Keller INTL",null,null,"YET TO PLAN"]
[]
[null,"Who should fill in the form? "]
[null,"National NTD coordinator should compile all required information needed to complete the request form. In the absence of such a coordinator, specific programme managers should coordinate their respective part. The final single request must be approved by the Ministry of Health."]
[]
[null,"Information on person(s) who has filled in the form"]
[]
[null,"Title ","Name",null,"Phone",null,"Email","Date"]
[null,"LF Programme Manager","IBRAHIM  KARGBO LABOUR ",null,23278317788,null,"karbolabour@gmail.com","2021-05-20"]
[null,"Data Manager","ABDULAI  CONTEH ",null,23276601498,null,"abdulconteh2020@yahoo.com","2021-05-20"]
[]
[]
[]
[null,"The WHO recommends that all serious adverse events suspected to be associated with use of PC medicines should be reported in accordance with national Pharmacovigilance guidelines. In the absence of a national Pharmacovigilance system, contact the WHO Neglected Tropical Disease department for guidance."]
[null,"The WHO is committed to facilitate PC medicines donation with a free-of-charge supply of a) albendazole, mebendazole and praziquantel to the MoH’s national warehouse; and b) diethylcarbamazine citrate to the entry port/airport of recipient countries."]
[null,"The institution submitting the present request is responsible for a) arranging the offloading of the medicines from the truck and storing it in the national warehouse and subsequent shipment to the final distribution centres; b) for registering the donated medicine, if required, by the relevant national regulatory authorities; and c) for informing about any changes of their PC campaigns (e.g. postpone of the planned MDA date, replacement of NTD coordinator, etc.)."]
[null,null,"I have read and accept WHO Data Sharing Policy"]
[null,"Name and signature of NTD coordinator \nor Ministry of Health representative",null,"DR.IBRAHIM KARGBO- LABOUR "]
[null,"Date:",null,"2020-11-26"]
[]
[null,"Please complete information on shipment and consignee in the worksheet SHIPMENT. Any additional details related to this Request should be provided in the \"Additional information\" box in the worksheet SHIPMENT."]
[null,"Please send the national request (signed and in electronic format) to the concerned WR with copy to:"]
[null,"WHO headquarters","PC_JointForms@who.int"]
[null,"WHO Regional Office","Regional Advisor for NTD"]
[null,"Mectizan donation program","Dr Yao Sodahlon, email: ysodahlon@taskforce.org"]
[]
[null,"Please note that your request will be reviewed by an independent panel before approval. The information in this form, joint reporting form and PC epidemiological data reporting form are essential for WHO to ensure efficient usage of medicines. As part of its ongoing monitoring and evaluation activities, and to meet its contractual obligations to donors and other partners, WHO and its appointed agents reserve the right to periodically inspect stocks of the medicines at country level."]

{"sheet":"SHIPMENT","index":8,"n_rows":46,"n_cols":8,"rows_kept":46,"cut":false,"hidden":false,"merged":[[34,1,34,7],[36,1,36,7],[0,1,0,7],[1,1,1,7],[2,1,2,5],[17,5,17,7],[18,5,18,7],[19,2,19,4],[19,5,19,7],[21,2,21,4],[3,2,3,5],[4,1,4,7],[22,2,22,4],[22,5,22,7],[15,2,15,4],[20,5,20,7],[15,5,15,7],[20,2,20,4],[18,2,18,4],[16,2,16,4],[47,1,56,7],[45,1,45,7],[37,1,37,6],[38,1,38,5],[40,1,40,7],[41,1,41,6],[39,1,39,6],[42,1,42,6],[43,1,43,7],[25,2,25,4],[25,5,25,7],[24,1,24,7],[6,1,6,7],[7,2,7,4],[7,5,7,7],[8,2,8,4],[8,5,8,7],[9,2,9,4],[9,5,9,7],[10,2,10,4],[10,5,10,7],[11,2,11,4],[11,5,11,7],[12,2,12,4],[12,5,12,7],[13,2,13,4],[13,5,13,7],[14,2,14,4],[14,5,14,7],[23,2,23,4],[23,5,23,7],[21,5,21,7],[16,5,16,7],[17,2,17,4],[26,2,26,4],[26,5,26,7],[27,2,27,4],[27,5,27,7],[28,2,28,4],[28,5,28,7],[32,2,32,4],[32,5,32,7],[29,2,29,4],[29,5,29,7],[30,2,30,4],[30,5,30,7],[31,2,31,4],[31,5,31,7]]}
[]
[null,"Joint request for selected PC medicines v.3.1"]
[]
[null,"Country",{"$f":"IF(INTRO!$E$33<>0,INTRO!$E$33,\" \")","v":"Sierra Leone"},null,null,null,"Year",{"$f":"IF(INTRO!$E$35<>0,INTRO!$E$35,\" \")","v":2021}]
[]
[null,"Information on shipment and consignee "]
[]
[null,"Albendazole for LF","Consignee",null,null,"Delivery point / Final recipient\nif different from the consignee"]
[null,"Name","Liyosi, Mr Evans ",null,null,"Dr IBRAHIM KARGBO LABOUR "]
[null,"Department/Unit","WHO  REPRESENTATIVE  ",null,null,"NTD Programme Manager"]
[null,"Organization","WHO COUNTRY OFFICE  SIERRA LEONE ",null,null,"MoHS Freetown Sierra Leone"]
[null,"Phone","+232 22 233565 ",null,null,23278317788]
[null,"Fax"]
[null,"E-mail","afwcosl@who.int",null,null,"kargbolabour@gmail.com"]
[null,"Mailing address","PO Box 529 Freetown, Sierra Leone",null,null,"NTD Programme, New England, Freetown,Sierra Leone"]
[]
[null,"Ivermectin","Consignee",null,null,"Delivery point / Final recipient\nif different from the consignee"]
[null,"Name","Liyosi, Mr Evans ",null,null,"Dr IBRAHIM KARGBO LABOUR "]
[null,"Department/Unit","WHO  REPRESENTATIVE  ",null,null,"NTD Programme Manager"]
[null,"Organization","WHO COUNTRY OFFICE  SIERRA LEONE ",null,null,"MoHS Freetown Sierra Leone"]
[null,"Phone","+232 22 233565 ",null,null,23278317788]
[null,"Fax"]
[null,"E-mail","afwcosl@who.int",null,null,"kargbolabour@gmail.com"]
[null,"Mailing address","PO Box 529 Freetown, Sierra Leone",null,null,"NTD Programme, New England, Freetown,Sierra Leone"]
[]
[null,"Praziquantel","Consignee",null,null,"Delivery point / Final recipient\nif different from the consignee"]
[null,"Name","Liyosi, Mr Evans ",null,null,"Dr IBRAHIM KARGBO LABOUR "]
[null,"Department/Unit","WHO  REPRESENTATIVE  ",null,null,"NTD Programme Manager"]
[null,"Organization","WHO COUNTRY OFFICE  SIERRA LEONE ",null,null,"MoHS Freetown Sierra Leone"]
[null,"Phone","+232 22 233565 ",null,null,23278317788]
[null,"Fax"]
[null,"E-mail","afwcosl@who.int",null,null,"kargbolabour@gmail.com"]
[null,"Mailing address","PO Box 529 Freetown, Sierra Leone",null,null,"NTD Programme, New England, Freetown,Sierra Leone"]
[]
[]
[null,"Information on import requirements"]
[]
[null,"Is the Import Permit required?",null,null,null,null,null,"No"]
[null,"How long does it take to obtain the Import Permit?"]
[null,"Do you require any documents to be submitted together with the Import Permit application?"]
[null,"If YES, please specify here"]
[null,"Does the consignee have to get customs clearance before the shipment can proceed?",null,null,null,null,null,"No"]
[null,"Is there any additional information may be helpful in ensuring timely clearance and delivery of medicines to your country? ",null,null,null,null,null,"No"]
[null,"If YES, please specify here"]
[]
[null,"Additional information"]

{"sheet":"DATA_POLICY","index":9,"n_rows":39,"n_cols":8,"rows_kept":39,"cut":false,"hidden":false,"merged":[[55,1,55,2],[0,1,0,5],[1,1,1,7],[3,3,3,5],[6,1,6,7],[8,1,12,7],[13,1,16,7],[17,1,21,7],[22,1,25,7],[26,2,36,7],[38,1,45,7]]}
[]
[null,"Joint request for selected PC medicines v.3.1"]
[]
[null,"Country",null,{"$f":"IF(INTRO!$E$33<>0,INTRO!$E$33,\" \")","v":"Sierra Leone"},null,null,"Year",{"$f":"IF(INTRO!$E$35<>0,INTRO!$E$35,\" \")","v":2021}]
[]
[]
[null,"WHO Data Sharing Policy statement"]
[]
[null,"Data are the basis for all sound public health actions and the benefits of data sharing are widely recognized, including scientific and public health benefits. Whenever possible, WHO wishes to promote the sharing of health data, including but not restricted to surveillance and epidemiological data.  "]
[]
[]
[]
[]
[null,{"$f":"\"In this connection, and without prejudice to information sharing and publication pursuant to legally binding instruments, by providing data to WHO, the Ministry of Health of \" & D4 & \":\"","v":"In this connection, and without prejudice to information sharing and publication pursuant to legally binding instruments, by providing data to WHO, the Ministry of Health of Sierra Leone:"}]
[]
[]
[]
[null,"Confirms that all data to be supplied to WHO hereunder have been collected in accordance with applicable national laws, including data protection laws aimed at protecting the confidentiality of identifiable persons;"]
[]
[]
[]
[]
[null,{"$f":"\"Agrees that WHO shall be entitled, subject always to measures to ensure the ethical and secure use of the data, and subject always to an appropriate acknowledgement of \"&D4&\":\"","v":"Agrees that WHO shall be entitled, subject always to measures to ensure the ethical and secure use of the data, and subject always to an appropriate acknowledgement of Sierra Leone:"}]
[]
[]
[]
[null,null,"to publish the data, stripped of any personal identifiers and make the Data available to any interested party on request (to the extent they have not, or not yet, been published by WHO) on terms that allow non-commercial, not-for-profit use of the Data for public health purposes (provided always that publication of the Data shall remain under the control of WHO); \nto use, compile, aggregate, evaluate and analyse the Data and publish and disseminate the results thereof in conjunction with WHO’s work and in accordance with the Organization’s policies and practices."]
[]
[]
[]
[]
[]
[]
[]
[]
[]
[]
[]
[null,{"$f":"CONCATENATE(\"Except where data sharing and publication is required under legally binding instruments (IHR, WHO Nomenclature Regulations 1967, etc.), the Ministry of Health of \", D4,\" may in respect of certain data opt out of (any part of) the above,\" & \" by notifying WHO thereof in writing at the following address, provided that any such notification shall clearly identify the data in question and clearly indicate the scope of the opt-out (in reference to the  above), \" & \"and provided that specific reasons shall be given for the opt out.\")","v":"Except where data sharing and publication is required under legally binding instruments (IHR, WHO Nomenclature Regulations 1967, etc.), the Ministry of Health of Sierra Leone may in respect of certain data opt out of (any part of) the above, by notifying WHO thereof in writing at the following address, provided that any such notification shall clearly identify the data in question and clearly indicate the scope of the opt-out (in reference to the  above), and provided that specific reasons shall be given for the opt out."}]